Cogmind - Beta 16.1 @@@ ROGUE MODE // 2026.01.07 @ 12:39:52 Player: H3-MLN Result: Destroyed by Enhanced Grunt with Neutron Cannon Performance ------------- Evolutions (9) 4500 Regions Visited (35) 7000 Robots Destroyed (596) 2980 Value Destroyed (29046) 29046 Prototype IDs (370) 7400 Alien Tech Used (6) 1200 Bonus (54390) 54390 TOTAL SCORE: 106516 Bonus ------- Triggered High Security 1500 High Alert Combat Kills 15647 Follower Combat Kills 15361 Hunted by Unchained 1500 Destroyed Unchained 2000 Entered Garrisons 200 Used RIF Installer 500 Network Hubs Disabled 800 Met Zhirov 300 Built Enhanced Grunts 300 A7 Reached Mainframe 300 Met R17 at Cetus 500 Found Hidden Lab 3000 Scanned by Researcher 500 Destroyed MAIN.C Guards 500 Met MAIN.C 5000 Destroyed MAIN.C Shell 5000 Destroyed MAIN.C 10000 Met Architect 300 Destroyed A8 300 Destroyed A6 400 Destroyed A5 500 Friendly Fire -10018 Cogmind --------- Core Integrity 0/1600 Matter 219/300 Energy 268/1500 System Corruption 2% Temperature Cool (0) Movement Hovering (44) Location -1/Access_0 Parts ------- > --- POWER (2) -------- (None) > --- PROPULSION (7) --- Experimental Gyrokinetic Inverter Experimental Gyrokinetic Inverter Experimental Gyrokinetic Inverter Experimental Gyrokinetic Inverter Concept Combat Aerolev Unit > --- UTILITY (13) ----- Experimental Heat Sink Concept Phasing Heat Sink High-capacity Storage Unit Experimental Energy Well Concept Chromion Battery Advanced Quantum Shading Machine Spectral Analyzer Experimental Target Analyzer Experimental Target Analyzer Concept Core Analysis Suite Concept Core Analysis Suite Concept Cloak Mesh > --- WEAPON (3) ------- Compact Linear Accelerator Concept Miniperforator 1C-UTU's Sword "Choppy" > --- INVENTORY (20) --- Experimental Coolant Injector Concept NT7 Matterbank (641) AEGIS Remote Shield Helical Railgun Peak State ------------ > --- POWER ------------ Improved Quantum Reactor Hybrid Graviton Reactor > --- PROPULSION ------- Experimental Antigrav System Gravjet Array Gravjet Array Concept Combat Aerolev Unit Concept Gyrokinetic System > --- UTILITY ---------- Concept Antigrav Storage Unit Spectral Analyzer Concept Weapon Articulator Concept Core Analysis Suite Femtoactuators Experimental Force Booster Advanced Phase Shifter Concept Cloak Mesh Concept Cloak Mesh Centrium Medium Armor Plating Centrium Medium Armor Plating Concept Navigation Harness > --- WEAPON ----------- Concept Disintegration Ray Concept Deflector Sword Concept Deflector Sword > --- INVENTORY -------- Experimental Antigrav System Concept Combat Aerolev Unit Concept Combat Aerolev Unit Concept Phasing Heat Sink Concept Chromion Battery Concept NT7 Matterbank Concept Core Analysis Suite Femtoactuators Experimental Remote Shield Concept Matter Streamer Transdimensional Reconstructor Subatomic Replicator Concept Disintegration Ray Concept Plasma Driver Concept Plasma Driver Concept Miniperforator Sigix Terminator CPS Tube 1C-UTU's Sword "Choppy" Experimental Jetlance [Rating: 299] Favorites ----------- Power Backup Power III Engine Backup Power III Power Core Micro Nuclear Core Reactor Compact Particle Reactor Propulsion Biomechanical Wings Treads Light Treads Leg Experimental Myomer Leg Wheel Armored Wheel Hover Unit Concept Combat Aerolev Unit Flight Unit Biomechanical Wings Utility Large Storage Unit Device Advanced Sensor Array Storage Large Storage Unit Processor Advanced Signal Interpreter Hackware Improved System Shield Protection 1C-UTU's Buckler Weapon Impact Mace Energy Gun Spread Laser Energy Cannon Heavy Neutron Cannon Ballistic Gun Enhanced Autogun Ballistic Cannon Light Cannon Launcher Mini Grenade Launcher Special Weapon CPS Tube Impact Weapon Impact Mace Slashing Weapon 1C-UTU's Sword "Choppy" Piercing Weapon Kinetic Spear Special Melee Weapon Improved Datajack Build | -11 -10 -10 -9 -9 -9 -8 -8 -8 -8 -8 -6 -6 -6 -6 -6 -6 -6 -5 -5 -5 -5 -4 -4 -4 -4 -4 -3 -3 -3 -2 -2 -2 -1 -1 -1 ------- Run | Yrd Mat Min Mat Min Exi Min Mat Sto Rec Scr Fac Was Fac Ext Cet Arc Hub Fac Upp Upp Zhi Pro Fac Was Fac Gar Res Arm Lab Res Qua Frg Acc Com Ac0 Slots Evolved 18 | . . . 2 . . . 2 . . . 4 . . . . . . 2 . . . . 2 . . . 2 . . 2 . . 2 . . Power 1 | . . . . . . . . . . . 1 . . . . . . . . . . . . . . . . . . . . . . . . Propulsion 5 | . . . 1 . . . 1 . . . 1 . . . . . . . . . . . 1 . . . 1 . . . . . . . . Utility 11 | . . . 1 . . . 1 . . . 2 . . . . . . 2 . . . . 1 . . . 1 . . 1 . . 2 . . Weapon 1 | . . . . . . . . . . . . . . . . . . . . . . . . . . . . . . 1 . . . . . Parts Attached 471 | 8 5 3 23 1 15 . 31 13 . 11 40 . 1 . 13 2 8 25 3 14 3 5 7 16 35 8 4 18 . 14 7 90 4 27 17 Power 59 | 1 . . 4 . 2 . 4 . . 1 6 . . . 3 . . 7 . 1 1 . 1 1 4 1 . 3 . 2 3 8 . 4 2 Engine 14 | 1 . . 3 . 1 . 3 . . 1 1 . . . 1 . . 3 . . . . . . . . . . . . . . . . . Core 18 | . . . 1 . . . 1 . . . 3 . . . . . . 4 . . . . 1 . 4 1 . 1 . . 1 1 . . . Reactor 27 | . . . . . 1 . . . . . 2 . . . 2 . . . . 1 1 . . 1 . . . 2 . 2 2 7 . 4 2 Propulsion 127 | 3 1 . 8 . 2 . 11 5 . 4 9 . . . 2 . 3 3 1 2 . 2 2 4 9 3 1 3 . 4 . 34 . 7 4 Treads 21 | 1 . . 5 . 1 . 9 . . . . . . . 1 . . . . . . . . 4 . . . . . . . . . . . Leg 20 | . . . . . . . . . . . . . . . . . . . . 2 . . . . . . . . . . . 18 . . . Wheel 12 | 2 1 . 2 . 1 . 2 3 . . . . . . . . . . . . . . . . . . . . . . . 1 . . . Hover 22 | . . . . . . . . 1 . . . . . . . . 3 . . . . . . . . . . . . . . 7 . 7 4 Flight 52 | . . . 1 . . . . 1 . 4 9 . . . 1 . . 3 1 . . 2 2 . 9 3 1 3 . 4 . 8 . . . Utility 191 | 2 1 1 5 . 7 . 7 3 . 3 17 . 1 . 4 1 4 11 2 7 2 3 4 7 20 1 3 6 . 7 2 36 4 13 7 Device 86 | 1 . 1 1 . 2 . 2 2 . 2 7 . . . 1 1 2 4 2 3 1 2 2 4 9 . 2 2 . 1 2 16 2 8 4 Storage 22 | 1 1 . 2 . 1 . 1 . . . 2 . . . . . . 3 . 2 . . 1 . 2 . 1 . . . . 3 . 1 1 Processor 30 | . . . . . 1 . 1 . . . 4 . 1 . . . . 4 . . . . . . 6 . . 1 . 1 . 7 1 1 2 Hackware 20 | . . . . . 1 . 1 1 . 1 4 . . . . . 1 . . . . 1 1 . 3 1 . 1 . 3 . . 1 . . Protection 33 | . . . 2 . 2 . 2 . . . . . . . 3 . 1 . . 2 1 . . 3 . . . 2 . 2 . 10 . 3 . Artifact . | . . . . . . . . . . . . . . . . . . . . . . . . . . . . . . . . . . . . Weapon 94 | 2 3 2 6 1 4 . 9 5 . 3 8 . . . 4 1 1 4 . 4 . . . 4 2 3 . 6 . 1 2 12 . 3 4 Energy Gun 15 | 1 1 . 2 . . . 2 2 . . 1 . . . 1 . . . . . . . . 1 . . . . . . . 3 . 1 . Energy Cannon 16 | . . 1 1 . . . 1 . . . 2 . . . 1 . . . . . . . . 2 . . . 2 . 1 . 3 . 1 1 Ballistic Gun 17 | 1 1 . 1 . 1 . 3 3 . 1 . . . . 1 1 . . . . . . . 1 . . . 2 . . 1 . . . . Ballistic Cannon 7 | . 1 . 1 . . . . . . . 1 . . . . . . . . . . . . . . . . . . . . 1 . . 3 Launcher 8 | . . 1 1 . 2 . 1 . . . . . . . . . . 1 . . . . . . 1 . . . . . . . . 1 . Special Weapon 8 | . . . . . . . . . . . 1 . . . 1 . 1 1 . 1 . . . . . 2 . . . . 1 . . . . Impact Weapon 4 | . . . . . . . 2 . . . 2 . . . . . . . . . . . . . . . . . . . . . . . . Slashing Weapon 11 | . . . . . 1 . . . . 1 . . . . . . . 1 . 2 . . . . . . . 2 . . . 4 . . . Piercing Weapon 3 | . . . . . . . . . . . . . . . . . . 1 . . . . . . . 1 . . . . . 1 . . . Special Melee Weapon 5 | . . . . 1 . . . . . 1 1 . . . . . . . . 1 . . . . 1 . . . . . . . . . . Unidentified Prototypes 90 | . . . 3 . 2 . 4 4 . . 10 . . . 5 . 5 2 . 7 2 . . 1 4 . 1 10 1 3 4 14 . 8 . Corrupted Parts 2 | . . . . . . . . . . . . . . . . . . . . . . 1 . . . . . . . . . 1 . . . System Corruption 18 | . . . . . . . . . . . . . . . . . . . . . . 10 . . . . . . . . . 8 . . . Parts Lost 125 | . . 1 2 . 12 . 4 . . 3 5 . . . . . 2 12 . 2 . . 11 . 2 4 . . . 3 . 28 1 11 22 Power 19 | . . . 1 . 1 . . . . 1 1 . . . . . 1 4 . . . . 2 . . . . . . 1 . 1 . 2 4 Propulsion 45 | . . . . . 2 . 3 . . 1 1 . . . . . . 4 . 1 . . 5 . . 3 . . . 1 . 16 . 3 5 Utility 44 | . . 1 1 . 4 . 1 . . 1 3 . . . . . . 2 . . . . 3 . 1 1 . . . 1 . 9 1 6 9 Weapon 17 | . . . . . 5 . . . . . . . . . . . 1 2 . 1 . . 1 . 1 . . . . . . 2 . . 4 Highest Loss Streak 11 | . . 1 1 . 11 . 3 . . 3 3 . . . . . 2 5 . 1 . . 11 . 1 2 . . . 1 . 7 1 7 10 To Critical Strikes 4 | . . . . . . . . . . 1 . . . . . . . . . . . . . . . . . . . . . 1 1 1 . Average Backups 15 | 2 11 14 13 12 8 22 30 31 32 22 8 10 9 10 9 9 9 11 11 11 14 15 14 14 14 14 14 14 11 13 13 18 23 20 16 Power . | . . . . . . 1 2 1 1 . . . . . . . . . . . . . 1 . . . . . . . . . . . 1 Propulsion 2 | 1 3 4 2 1 2 7 7 7 8 5 . 2 2 2 1 1 1 1 . . 1 1 1 2 1 . . . . . . . 3 2 2 Utility 4 | . 1 1 2 4 2 8 10 8 9 6 2 1 1 1 1 2 3 2 4 3 7 6 5 5 5 7 7 7 4 5 5 5 9 7 7 Weapon 6 | . 5 8 7 5 2 3 8 12 13 9 4 6 5 6 5 5 4 5 5 5 5 5 5 4 4 4 5 5 3 4 3 7 7 8 4 Tool/Special . | . . . . . . . . . . . . . . . . . . . . . . . . . . . . . . . . . . . . Unused Backups 103 | . 4 1 2 6 5 . 16 7 . 14 3 . 1 . . 1 1 1 . 1 . . . . 6 . 2 6 4 2 1 7 1 4 7 Power 4 | . 1 . . . . . . . . . . . . . . . . . . 1 . . . . . . . . . . . 2 . . . Propulsion 29 | . 1 . . 2 2 . 5 6 . 1 . . . . . . . . . . . . . . 5 . . 1 . . . 2 . 2 2 Utility 38 | . . . . 2 3 . 5 1 . 6 2 . . . . 1 1 . . . . . . . 1 . 2 3 2 2 1 1 1 1 3 Weapon 28 | . 2 1 2 2 . . 6 . . 7 . . 1 . . . . 1 . . . . . . . . . 2 1 . . 1 . 1 1 Tool/Special 4 | . . . . . . . . . . . 1 . . . . . . . . . . . . . . . . . 1 . . 1 . . 1 Average Slot Usage (%) 92 | . 100 93 97 100 90 88 88 89 90 91 92 98 100 100 95 99 98 90 90 89 100 99 87 81 95 93 96 99 96 97 98 85 87 83 81 Engine 3 | . 14 14 9 11 4 . 7 3 . 2 3 5 6 6 6 6 5 2 . . . . . . . . . . . . . . . . . Core 1 | . . . 1 . . . . . . . 6 6 6 6 4 . . . 5 5 2 . 1 . 4 5 4 2 4 1 . . . . . Reactor 4 | . . . . . 4 11 1 5 9 5 . . . . 1 6 6 4 . 1 7 10 4 9 5 4 4 5 4 6 6 5 8 6 4 Treads 6 | . 14 14 21 22 12 11 19 18 18 11 . . . . . . . . . . . . . 13 2 . . . . . . . . . . Wheel 5 | . 14 14 11 11 20 22 15 17 18 11 . . . . . . . . . . . . . . . . . . . . . . . . . Hover 1 | . . . . . . . . . . . . . . . . . . . . . . . . . . . . . . . . 4 20 25 22 Flight 15 | . . . . . . . . . . 12 32 33 33 33 32 33 32 28 27 19 17 17 26 1 26 28 29 33 33 30 30 10 . . . Device 14 | . 14 7 10 11 5 . 2 17 18 17 10 13 9 13 12 20 14 19 17 15 11 21 14 20 14 10 19 17 15 16 17 15 28 24 18 Storage 6 | . 14 14 13 11 11 11 9 9 9 5 4 6 6 6 6 6 6 5 5 5 5 5 5 5 5 5 4 4 4 4 4 4 4 4 4 Processor 6 | . . . . . 6 . 4 . . . 8 . 5 6 6 6 6 6 11 9 5 5 5 3 12 15 14 14 14 13 13 14 11 11 17 Hackware 5 | . . . . . . 11 7 . . 2 12 20 16 13 8 6 11 11 11 11 8 . 9 9 9 9 4 4 . 3 4 . . . . Protection 3 | . . . 7 11 2 . 3 . . 2 . . . . 1 . . . . 3 14 12 9 5 3 4 4 5 9 8 7 6 4 5 2 Energy Gun 2 | . 5 1 6 8 9 11 7 8 9 5 . . . . 2 . . . . . . . . . . . . . . . . . . 1 1 Energy Cannon 1 | . . 13 4 . . . 4 . . . . . . . . 5 1 . . . . . . 4 1 . . . . . . 1 . . 2 Ballistic Gun 2 | . 16 5 . 5 9 11 5 7 9 8 . . . . . . . . . . . . . . . . . . . . . . . . . Impact Weapon 1 | . . . . . . . . 1 . 2 5 6 6 6 5 5 6 2 4 2 . . . . . . . . . . . . . . . Slashing Weapon 2 | . . . . . . . . . . . 4 . . . . . . . 4 6 8 10 8 4 4 2 4 5 9 11 11 8 8 4 2 Peak Build Rating 299 | 8 12 12 22 22 25 26 37 47 46 46 77 73 75 75 95 92 93 103 88 120 120 122 120 135 138 135 144 167 166 191 194 285 292 299 291 Average Rating 93 | 5 10 10 17 21 18 25 31 43 46 43 58 72 74 75 78 91 89 92 82 86 117 118 104 119 125 127 139 155 161 181 188 222 290 266 247 On Entrance 96 | . 8 11 12 22 20 24 26 37 46 46 33 70 73 75 75 87 91 85 68 85 115 119 102 57 129 117 133 144 166 163 187 191 282 290 286 Avg Prop Armor Cover (%) 8 | 16 10 12 14 13 11 9 13 13 13 12 1 . . . 8 6 . . . 3 2 2 2 3 2 . . . . . . 4 . . . Naked Turns . | . . . . . . . . . . . . . . . . . . . . . . . . . . . . . . . . . . . . Heaviest Build 226 | 15 31 31 42 42 216 216 222 226 226 226 28 24 24 24 34 42 42 47 43 55 62 72 51 94 98 56 53 66 64 66 71 138 86 144 165 Greatest Support 199 | 26 12 12 20 12 30 24 82 24 24 24 30 30 30 30 47 47 47 48 46 66 66 66 52 190 190 54 60 68 66 69 68 199 110 110 116 Greatest Overweight (x) 26 | 1 2 2 3 3 8 8 17 22 9 9 1 . . . 8 13 1 1 . 1 . 1 3 . 1 1 1 . . . 1 15 . 26 1 Average Overweight (x) 1 | . 1 2 2 3 2 8 8 10 9 4 . . . . . 5 . . . . . . . . . . . . . . . . . . . Largest Inventory Capacity 35 | 8 15 15 15 15 35 35 35 35 35 35 10 10 10 10 10 10 10 15 15 15 15 15 15 15 15 15 15 15 15 15 15 25 25 25 25 Average Capacity 18 | 6 12 15 15 15 19 35 35 35 35 24 8 10 10 10 10 10 10 13 15 13 15 15 15 15 15 15 15 15 15 15 15 21 25 25 22 Most Carried 35 | 6 15 15 15 15 21 31 35 35 35 35 10 10 10 10 10 10 10 15 15 15 15 15 15 15 15 15 15 15 15 15 15 25 25 25 25 Average Carried 16 | 3 12 14 14 13 10 25 34 34 35 24 8 10 9 10 9 9 9 12 14 12 14 14 14 14 14 14 14 14 12 14 14 21 24 20 16 Final Capacity 35 | 8 15 15 15 15 35 35 35 35 35 5 10 10 10 10 10 10 10 15 15 15 15 15 15 15 15 15 15 15 15 15 15 25 25 25 20 Final Carried 35 | 6 15 15 15 12 21 31 35 35 35 4 10 10 10 10 10 10 10 15 15 15 15 15 15 15 15 15 15 14 15 15 15 25 24 25 4 Class Distribution -------------------- 20% | Hauler-Mutant 13% | Scavenger-Mutant 12% | Hacker-Sprinter 9% | Mutant 8% | Commander-Mutant 6% | Hacker-Ninja 6% | Scavenger-Gladiator 4% | Scavenger-Scout 4% | Scavenger-Ninja 3% | Scavenger-Sprinter 3% | Commander-Sprinter 3% | Sprinter Dominant Class ---------------- Mutant | -10/Materials Mutant | -10/Mines Mutant | -9/Materials Mutant | -9/Mines Scavenger-Mutant | -9/Exiles Hauler-Mutant | -8/Mines Hauler-Mutant | -8/Materials Hauler-Mutant | -8/Storage Hauler-Mutant | -8/Recycling Hauler-Mutant | -8/Scraptown Hacker-Sprinter | -6/Factory Hacker-Sprinter | -6/Waste Hacker-Sprinter | -6/Factory Hacker-Sprinter | -6/Extension Commander-Sprinter | -6/Cetus Commander-Mutant | -6/Archives Hacker-Sprinter | -6/Hub_04(d) Hacker-Sprinter | -5/Factory Scavenger-Scout | -5/Upper Caves Scavenger-Mutant | -5/Upper Caves Scavenger-Mutant | -5/Zhirov Scavenger-Gladiator | -4/Proximity Caves Scavenger-Sprinter | -4/Factory Scavenger-Mutant | -4/Waste Scavenger-Scout | -4/Factory Scavenger-Sprinter | -4/Garrison Scavenger-Ninja | -3/Research Scavenger-Ninja | -3/Armory Scavenger-Scout | -3/Lab Hacker-Ninja | -2/Research Hacker-Ninja | -2/Quarantine Scavenger-Gladiator | -2/Protoforge Scavenger-Ninja | -1/Access Scavenger-Mutant | -1/Command Mutant | -1/Access_0 Resources | -11 -10 -10 -9 -9 -9 -8 -8 -8 -8 -8 -6 -6 -6 -6 -6 -6 -6 -5 -5 -5 -5 -4 -4 -4 -4 -4 -3 -3 -3 -2 -2 -2 -1 -1 -1 ----------- Run | Yrd Mat Min Mat Min Exi Min Mat Sto Rec Scr Fac Was Fac Ext Cet Arc Hub Fac Upp Upp Zhi Pro Fac Was Fac Gar Res Arm Lab Res Qua Frg Acc Com Ac0 Matter Collected 11355 | 193 201 127 642 119 610 19 886 696 4 130 715 20 45 13 287 367 130 685 97 200 . 198 133 294 579 304 70 167 . 407 103 2416 55 232 211 Remotely 529 | . . . . . . . . . . . . . . . . . . . . . . . . . . . . . . . . 529 . . . Salvage Created 25539 | 18 46 102 976 19 370 233 1745 1329 64 23 1338 100 150 . 228 376 203 607 289 265 . 9 230 639 2588 375 223 574 . 3042 1399 5060 826 1431 662 Parts 1239 | 3 2 8 75 3 40 5 113 75 2 . 48 2 1 . 14 23 3 40 1 15 . . 9 10 125 15 16 31 . 137 68 233 43 40 39 Haulers Intercepted 31 | . . . 5 . . . 4 6 . . 3 . 1 . . . . 2 . . . . 1 . 4 . . . . 2 2 . 1 . . Recyclers Shooed 8 | . . . . . . . . 2 . . 2 . . . . . . . . . . . . . 4 . . . . . . . . . . Parts Field Recycled . | . . . . . . . . . . . . . . . . . . . . . . . . . . . . . . . . . . . . Retrieved Matter . | . . . . . . . . . . . . . . . . . . . . . . . . . . . . . . . . . . . . Parts Self-Destructed 6 | . . . . . . . . . . . . . . . . . . . . 6 . . . . . . . . . . . . . . . Prevented 1 | . . . . . . . . . . . . . . . . . . . 1 . . . . . . . . . . . . . . . . Parts Restored 10 | . . . . . . . . . . . . . . . . . . . . . . . . . . . . . . . . 10 . . . Faulty 10 | . . . . . . . . . . . . . . . . . . . . . . . . . . . . . . . . 10 . . . Kills | -11 -10 -10 -9 -9 -9 -8 -8 -8 -8 -8 -6 -6 -6 -6 -6 -6 -6 -5 -5 -5 -5 -4 -4 -4 -4 -4 -3 -3 -3 -2 -2 -2 -1 -1 -1 ------- Run | Yrd Mat Min Mat Min Exi Min Mat Sto Rec Scr Fac Was Fac Ext Cet Arc Hub Fac Upp Upp Zhi Pro Fac Was Fac Gar Res Arm Lab Res Qua Frg Acc Com Ac0 Combat Hostiles Destroyed 374 | . . 4 25 . 7 2 36 20 . . 5 . . . . . 1 10 . 2 . 1 1 . 24 8 2 6 . 26 7 71 9 98 9 Melee 108 | . . . . . . . 1 . . . 4 . . . . . . 5 . . . 1 . . 10 4 2 5 . 26 7 28 9 5 1 Guns 42 | . . . 7 . . 2 8 20 . . . . . . . . . . . . . . . . . . . 1 . . . 4 . . . Cannons 62 | . . 1 15 . 1 . 8 . . . 1 . . . . . . . . . . . . . 9 . . . . . . 23 . . 4 AOE 142 | . . 3 3 . 6 . 18 . . . . . . . . . 1 5 . 1 . . 1 . 3 4 . . . . . 8 . 89 . Classes Destroyed 36 | 1 1 1 8 . 3 . 2 2 . 1 2 1 . . 1 . . 1 1 1 . . . . 3 . . 1 . . 1 3 1 1 . Worker 25 | . . . 2 1 . . 4 4 . . 4 . . . . . . . . . . . . . 3 . . . . 1 3 . 3 . . Builder 27 | . . . 2 . . . 1 2 . . 3 . 4 . . . 3 5 . . . . . . 2 . 2 . . 1 . 2 . . . Tunneler 12 | 1 . . . 1 . . 3 . . . 6 . . . . . . . . . . . 1 . . . . . . . . . . . . Hauler 31 | . . . 5 . . . 4 6 . . 3 . 1 . . . . 2 . . . . 1 . 4 . . . . 2 2 . 1 . . Recycler 22 | . 1 1 . . . 2 2 1 1 . 4 . . . . . . . . . . . . . 5 . . . . 5 . . . . . Carrier 12 | . . . . . . . . . . . . . . . . . . . . . . . . . . . . . . . . . . 12 . Minesweeper 1 | . . . . . . . . . . . . . . . . . . . 1 . . . . . . . . . . . . . . . . Mechanic 6 | . . . 1 . . . 2 . . . . . . . . . . . . . . . . . . . . . . . . 2 1 . . Operator 30 | . . . 3 . . . 1 3 . . 2 . 1 . . 9 . 1 . . . . . . 5 . . . . 2 2 1 . . . Drone 8 | . . . . . . . . 1 . . . . . . . . . . . . . 1 . . . . . . . . . 6 . . . Turret 1 | . . . . . 1 . . . . . . . . . . . . . . . . . . . . . . . . . . . . . . Watcher 32 | . . . 2 . . . 3 1 . . 2 . . . 1 . 3 2 . . . . 2 . 4 . . 1 . 6 2 1 2 . . Swarmer 47 | . . 3 7 . . . 11 3 . . 1 . . . . . . 1 . . . . . . 7 4 . . . . 1 . 5 4 . Cutter 9 | . . . . . . . . . . . . . . . . . . 7 . . . . . . . 1 . . . 1 . . . . . Saboteur 10 | . . . . . . . . . . . . . . . . . . . . . . . . . 1 . . . . . . 3 . 6 . Grunt 126 | . . . 17 . . 2 17 6 . . 1 . . . . . 1 . . . . . . . 6 . . . . 7 2 16 . 51 . Brawler 3 | . . . 1 . . . 1 . . . . . . . . . . . . . . . . . . . . . . . . 1 . . . Duelist 1 | . . . . . . . . . . . . . . . . . . . . . . . . . . . . . . . . 1 . . . Protector 1 | . . . . . . . . . . . 1 . . . . . . . . . . . . . . . . . . . . . . . . Researcher 10 | . . . . . . . . . . . . . . . . . . . . . . . . . . . . . . . 7 3 . . . Sentry 41 | . . . . . . . 7 9 . . 1 . . . . . . 1 . . . . . . 4 1 1 1 . 3 1 11 1 . . Specialist 11 | . . . . . . . . . . . . . . . . . . . . . . . . . . . . 1 . . 2 2 . 6 . Hunter 13 | . . . . . . . . 2 . . . . . . . . . . . 1 . . . . . . 1 2 . 2 1 . 2 2 . Programmer 59 | . . . . . . . . . . . 1 . . . . . . 1 . . . . . . 4 2 . 1 . 12 . 14 . 24 . Heavy 2 | . . . . . . . . . . . . . . . . . . . . . . . . . 1 . . . . 1 . . . . . Q-Series 1 | . . . . . . . . . . . . . . . . . . . . . . . . . . . . . . . . . 1 . . Behemoth 1 | . . . . . . . . . . . . . . . . . . . . . . . . . 1 . . . . . . . . . . Armor Guard 1 | . . . . . . . . . . . . . . . . . . . . . . . . . . . . 1 . . . . . . . M Guard 2 | . . . . . . . . . . . . . . . . . . . . . . . . . . . . . . . . . . 2 . Enhanced Grunt 4 | . . . . . . . . . . . . . . . . . . . . . . . . . . . . . . . . . . . 4 Enhanced Hunter 2 | . . . . . . . . . . . . . . . . . . . . . . . . . . . . . . . . . . . 2 Hotshot 2 | . . . . . . . . . . . . . . . . . . . . . . . . . . . . . . . . 2 . . . Decapitator 6 | . . . . . . . . . . . . . . . . . . . . . . . . . . . . . . . . 6 . . . Immortal 3 | . . . . . . . . . . . . . . . . . . . . . . . . . . . . . . . . 3 . . . Combat Programmer 2 | . . . . . . . . . . . . . . . . . . . . . . . . . . . . . . . . . . 2 . Executioner 2 | . . . . . . . . . . . . . . . . . . . . . . . . . . . . . . . . 2 . . . Alpha 7 2 | . . . . . . . . . . . . . . . . . . . . . . . . . . . . . . . . 2 . . . V-Series 2 | . . . . . . . . . . . . . . . . . . . . . . . . . . . . . . . . 2 . . . Botcube 1 | . . . . . . . 1 . . . . . . . . . . . . . . . . . . . . . . . . . . . . Zionite 8 | . . . . . 8 . . . . . . . . . . . . . . . . . . . . . . . . . . . . . . Decomposer 2 | . . . . . . . . . . . . . . . . . . . 2 . . . . . . . . . . . . . . . . Packrat 3 | . . . . . . . . . . . . . . . . . . . 3 . . . . . . . . . . . . . . . . Tinkerer 2 | . . . . . . . . . . 1 . . . . . . . . . . . . . . . . . . . . . 1 . . . Master Thief 2 | . . . . . . . . . . . . . . . . . . . . 2 . . . . . . . . . . . . . . . Assembled 7 | . . . . . 7 . . . . . . . . . . . . . . . . . . . . . . . . . . . . . . Surgeon 2 | . . . . . . . . . . . . . . . 2 . . . . . . . . . . . . . . . . . . . . Thug 1 | . . . . . . . . . . . . . . . . 1 . . . . . . . . . . . . . . . . . . . Butcher 1 | . . . . . . . . . . . . . . . 1 . . . . . . . . . . . . . . . . . . . . Martyr 2 | . . . . . . . . . . . . 2 . . . . . . . . . . . . . . . . . . . . . . . Best Kill Streak 101 | 1 1 3 8 1 6 3 9 6 1 . 3 . 4 . 1 3 2 4 1 2 . 1 2 . 12 4 3 3 . 5 8 11 12 101 3 Combat Bots Only 89 | . . 3 4 . 6 2 8 3 . . 1 . . . . . 1 4 . 2 . 1 1 . 7 4 1 2 . 5 2 10 8 89 3 Max Kills in Single Turn 101 | 1 1 2 3 1 4 1 5 2 1 1 1 1 1 . 1 1 2 4 1 1 . 1 1 . 2 3 1 1 . 1 1 3 2 101 2 Gunslinging . | . . . . . . . . . . . . . . . . . . . . . . . . . . . . . . . . . . . . Exploded 89 | . . 2 3 . 4 . 4 . . . . . . . . . 1 4 . 1 . . 1 . 2 3 . . . . . 2 . 89 . Melee 2 | . . . . . . . 1 . . . 1 . . . . . . 1 . . . 1 . . 1 1 1 1 . 1 1 2 2 1 1 Uniques/NPCs Destroyed 14 | . . 1 . 1 3 . . . . . . . . . 2 . 1 . . 1 . . 1 . . . . . . . . . . 1 3 YI-UF0 (-10/Mines) 8R-AWN (-9/Mines) EX-HEX (-9/Exiles) EX-BIN (-9/Exiles) EX-DEC (-9/Exiles) Revision 17 (-6/Cetus) A7 (-6/Cetus) BL-1NK (-6/Hub_04(d)) 1C-UTU (-5/Upper Caves) GL-D0S (-4/Factory) MAIN.C Shell (-1/Command) A8 (-1/Access_0) A6 (-1/Access_0) A5 (-1/Access_0) Combat | -11 -10 -10 -9 -9 -9 -8 -8 -8 -8 -8 -6 -6 -6 -6 -6 -6 -6 -5 -5 -5 -5 -4 -4 -4 -4 -4 -3 -3 -3 -2 -2 -2 -1 -1 -1 -------- Run | Yrd Mat Min Mat Min Exi Min Mat Sto Rec Scr Fac Was Fac Ext Cet Arc Hub Fac Upp Upp Zhi Pro Fac Was Fac Gar Res Arm Lab Res Qua Frg Acc Com Ac0 Hostile Shots Fired 2095 | . 4 8 72 12 36 26 163 92 . 17 124 . 2 . 1 . 13 110 2 23 . . 71 . 112 33 . 16 . 33 17 467 61 256 324 Missed 773 | . 1 . 20 1 3 9 45 24 . 9 79 . 2 . 1 . 8 48 . 6 . . 42 . 30 16 . 8 . 16 12 158 32 80 123 Deflected 17 | . . . . . . . . . . . . . . . . . . . . . . . . . . . . . . . . 16 1 . . Hits 1322 | . 3 8 52 11 33 17 118 68 . 8 45 . . . . . 5 62 2 17 . . 29 . 82 17 . 8 . 17 5 309 29 176 201 Melee 70 | . . . 1 . 1 . 2 . . . . . . . . . . 29 . 5 . . . . . . . . . . . 27 . . 5 Projectile 1252 | . 3 8 51 11 32 17 116 68 . 8 45 . . . . . 5 33 2 12 . . 29 . 82 17 . 8 . 17 5 282 29 176 196 AOE 23 | . . 4 1 . . . . . . . 1 . . . . . . 1 . . . . 3 . 1 . . . . . . 9 . 3 . Critical Strikes 118 | . . . 1 8 1 . 3 . . 1 1 . . . 1 . 1 17 . . . . 1 . 8 1 . 2 . 1 . 29 1 14 27 Part Disruptions 7 | . . . . . . . . . . . . . . . . . . . . . . . . . . . . . . . . . . 5 2 Damage Taken 32277 | . 27 234 654 241 1402 193 1812 994 . 231 648 . 137 . 60 . 147 1602 47 355 . . 1047 . 1821 462 . 176 . 483 116 9536 466 4116 5270 Core 4403 | . . 43 110 15 184 15 171 97 . 32 246 . 101 . . . 71 589 25 159 . . 165 . 129 17 . 26 . 50 . 732 52 233 1141 Absorbed by Shields 1809 | . . . . . . . . . . . . . . . 32 . . . . . . . . . . . . . . . . 7 . 698 1072 Redirected to Shielding 609 | . . . . . . . . . . . . . . . . . . . . . . . 158 . . . . . . 15 11 425 . . . Ignored by Resistances 1395 | . . . . . . . . . . . . . . . . . 136 . . . . . . . . . . . . . . 83 91 843 242 Regen/Repaired (Parts) 601 | . . . 71 . . . 388 . . . . . 5 . 2 . . 3 . . 41 9 33 . . . . . . . . . . 49 . Core Remaining (%) 61 | 100 . 82 . . . 19 . . . 45 . . . . . . 50 . . . . 22 . . . 72 . . 98 . . 66 . . . Volleys Fired 977 | 2 23 8 88 24 192 19 99 85 1 . 21 . . . 95 71 1 21 2 1 3 5 . 4 49 8 . 23 . . 1 90 1 10 30 Largest 3 | 2 2 2 2 2 2 2 2 2 2 . 1 . . . 1 1 1 1 1 1 1 1 . 2 2 1 . 1 . . 1 3 1 2 3 Hottest 440 | 70 60 100 98 95 85 85 125 105 105 . 110 . . . 240 33 . 110 110 . 7 110 . 230 204 49 . 120 . . . 330 140 140 440 Shots Fired 1367 | 4 44 13 168 48 209 37 165 168 2 . 21 . . . 94 71 1 21 2 1 3 5 . 8 53 8 . 23 . . 1 126 1 11 59 Gun 863 | 4 30 5 41 43 186 37 104 168 2 . . . . . 89 71 . . . . . . . . . . . 22 . . . 31 . 7 23 Cannon 452 | . 14 6 124 5 13 . 51 . . . 19 . . . 4 . . 15 2 . . 5 . 8 51 . . 1 . . . 95 1 2 36 Launcher 35 | . . 2 3 . 10 . 10 . . . . . . . . . . 4 . . . . . . 2 3 . . . . . . . 1 . Special 17 | . . . . . . . . . . . 2 . . . 1 . 1 2 . 1 3 . . . . 5 . . . . 1 . . 1 . Kinetic 644 | 2 38 3 83 43 187 19 43 85 1 . 1 . . . . 71 . . . . . . . . . . . 22 . . . 33 . . 13 Thermal 549 | 2 . 6 82 5 12 18 72 83 1 . 18 . . . 93 . . 15 2 . . 5 . 8 37 . . 1 . . . 62 1 3 23 Explosive 34 | . . 2 3 . 10 . 10 . . . . . . . . . . 4 . . . . . . 2 3 . . . . . . . . . Electromagnetic 85 | . 6 2 . . . . 40 . . . . . . . . . . . . . . . . . 14 . . . . . . 23 . . . Piercing 2 | . . . . . . . . . . . 2 . . . . . . . . . . . . . . . . . . . . . . . . Entropic 38 | . . . . . . . . . . . . . . . . . . . . . . . . . . . . . . . . 8 . 7 23 Robot Hit Streak 29 | 3 5 3 9 13 17 6 18 14 9 . 5 . . . 13 16 2 4 . 5 8 . . 6 8 4 . . . . 5 18 . 23 29 Robot Miss Streak 8 | . 3 1 7 3 5 5 8 5 1 . . . . . 3 3 . . . . . . . 1 3 1 . . . . . 5 . . 6 Penetration Max 1 | . . . . . . . 1 . . . . . . . . 1 . . . . . . . . . . . 1 . . . 1 . . 1 Secondary Targets 6 | . . . . . . 1 . 3 . . . . . . . . . . . . . . . . . . . . . . . . . . 2 Max Gunslinging Chain 1 | . . . . . . 1 . 1 . . . . . . . . . . . . . . . . . . . . . . . . . . 1 Shots Hit Robots 1510 | 3 26 6 111 43 121 28 115 127 2 2 43 6 9 3 69 48 6 39 12 12 3 1 7 13 92 17 6 15 . 104 55 219 31 62 54 Core Hits 877 | 1 2 5 83 13 70 33 93 71 2 . 19 1 . . 23 22 5 19 4 5 . 1 2 5 54 11 3 9 . 37 21 126 18 94 25 Critical Kills 61 | . . . . . . . 1 . . . 3 1 . . . 2 . . . . . . 1 1 8 . 1 2 . 8 4 17 . 4 8 Critical Parts Destroyed 74 | . . . . . 3 . . 1 . . 5 1 . . 1 2 2 3 . . . . 1 . 9 1 . 3 . 11 7 23 . . 1 Critical Strikes 220 | . . . 1 1 3 . 1 1 . . 10 2 . . 1 4 2 6 1 . . . 2 1 17 2 1 14 . 23 13 62 6 24 22 Meltdown 14 | . . . . . . . . . . . . . . . . . . . . . . . . . . . . . . . . 6 . 4 4 Destroy 121 | . . . . . 3 . . 1 . . . . . . . 3 . . . . . . 2 1 17 1 1 12 . 20 12 42 . . 6 Blast 2 | . . . 1 1 . . . . . . . . . . . . . . . . . . . . . . . . . . . . . . . Smash 18 | . . . . . . . 1 . . . 8 2 . . 1 1 2 3 . . . . . . . . . . . . . . . . . Sever 18 | . . . . . . . . . . . . . . . . . . . 1 . . . . . . . . . . 3 1 13 . . . Impale 47 | . . . . . . . . . . . 2 . . . . . . 3 . . . . . . . 1 . 2 . . . 1 6 20 12 Melee Attacks 1182 | . . . . 1 3 . 5 8 . 3 70 6 20 13 16 15 15 77 16 16 . 12 17 7 102 39 14 39 23 186 92 203 51 78 35 Impact 169 | . . . . . . . 5 8 . 2 39 6 17 10 16 15 15 28 4 4 . . . . . . . . . . . . . . . Slashing 820 | . . . . . 2 . . . . . 31 . . . . . . . 12 11 . 12 17 7 102 21 8 28 23 186 92 197 29 29 13 Piercing 184 | . . . . . . . . . . . . . . . . . . 49 . 1 . . . . . 18 6 11 . . . 6 22 49 22 Sneak Attacks 177 | . . . . 1 1 . . . . 2 19 6 8 3 3 2 3 7 6 5 . . 2 . 24 1 4 3 . 30 33 9 5 . . Combat Hostiles 45 | . . . . . . . . . . . . . . . . . . . . . . . . . 10 1 2 3 . 16 12 1 . . . Follow-up Attacks 100 | . . . . . . . . . . . 1 . . . . . . 3 2 . . . . . . 3 1 1 . 20 13 30 6 17 3 Martial Strikes 6 | . . . . . . . . . . . . . . . . . . . . . . . . . . . . . . . . 6 . . . Damage Inflicted 169338 | 38 409 280 2022 574 1747 369 4363 2684 41 90 2674 346 679 . 2627 1637 782 2679 527 654 . 61 614 1061 8579 1286 560 1201 . 9094 6127 16594 2219 93814 2906 Guns 11944 | 38 227 21 521 523 992 369 1454 2684 41 . . . . . 2075 1346 . . . . . . . . . . . 84 . . . 713 . 208 648 Cannons 9788 | . 182 86 1310 51 112 . 931 . . . 39 . . . 122 . . . . . . . . 252 1390 . . . . . . 4297 . . 1016 Explosions 96998 | . . 173 187 . 523 . 1842 . . . . . . . . . 432 652 . 156 . . . . 989 428 . . . . . 1669 . 89947 . Melee 50573 | . . . . . 120 . 136 . . 90 2604 346 679 . 430 291 350 2027 527 498 . 61 614 809 6200 858 560 1117 . 9094 6127 9915 2219 3659 1242 Ramming 4 | . . . 4 . . . . . . . . . . . . . . . . . . . . . . . . . . . . . . . . Kinetic 6051 | 25 367 11 840 513 933 95 538 814 20 . 39 . . . . 1346 . . . . . . . . . . . 84 . . . 310 . . 116 Thermal 104826 | 13 . 86 991 61 171 274 1277 1870 21 . . . . . 2197 . . 199 . . . . . 252 911 . . . . . . 5656 . 89947 900 Explosive 4555 | . . 173 187 . 523 . 1802 . . . . . . . . . . 453 . . . . . . 989 428 . . . . . . . . . Electromagnetic 2233 | . 42 10 . . . . 610 . . . . . . . . . 432 . . 156 . . . . 479 . . . . . . 504 . . . Impact 5017 | . . . . . . . 136 . . 90 1650 346 679 . 430 291 350 783 199 63 . . . . . . . . . . . . . . . Slashing 38702 | . . . . . 120 . . . . . 954 . . . . . . . 328 434 . 61 614 809 6200 340 283 460 . 9094 6127 9679 1222 1498 479 Piercing 6885 | . . . . . . . . . . . 31 . . . . . . 1244 . 1 . . . . . 518 277 657 . . . 236 997 2161 763 Entropic 1065 | . . . . . . . . . . . . . . . . . . . . . . . . . . . . . . . . 209 . 208 648 Highest Corruption 22 | . . . . . . . . . . . . . 4 4 4 4 1 3 3 4 4 10 1 1 5 . 3 4 4 3 3 22 . 8 2 Average Corruption 5 | . . . . . . . . . . . . . 4 4 4 3 1 2 3 3 4 3 1 1 1 . 3 3 4 1 3 15 . 3 1 Corruption Purged 23 | . . . . . . . . . . . . . . . . 4 . . . . . 4 . . 7 . . . . . . . . 8 . Corruption Blocked 7 | . . . . . . . . . . . . . . . . . . . . . . . . . . . . . . . . 7 . . . Effects 237 | . . . . . . . . . . . . . 8 8 20 3 . 10 10 10 3 2 . 6 3 . 1 13 3 10 10 101 . 12 4 Message Errors 45 | . . . . . . . . . . . . . . 1 4 . . . 4 4 1 1 . . 1 . 1 4 . 2 2 16 . 4 . Matter Fused 63 | . . . . . . . . . . . . . 3 3 5 3 . 4 1 3 . 1 . 2 1 . . 3 1 1 2 23 . 5 2 Heat Flow Errors 22 | . . . . . . . . . . . . . . 1 2 . . 2 . 1 . . . 1 . . . 4 1 1 1 8 . . . Energy Discharges 44 | . . . . . . . . . . . . . 2 3 3 . . 2 2 1 2 . . 2 . . . 1 . 5 3 17 . 1 . Parts Rejected 1 | . . . . . . . . . . . . . . . . . . . 1 . . . . . . . . . . . . . . . . Parts Fused 2 | . . . . . . . . . . . . . 1 . . . . . . . . . . . . . . . . . . 1 . . . Data Loss (minor) 28 | . . . . . . . . . . . . . 2 . 3 . . 2 1 1 . . . . 1 . . 1 1 1 2 11 . . 2 Data Loss (major) 11 | . . . . . . . . . . . . . . . 2 . . . . . . . . 1 . . . . . . . 7 . 1 . Misfires 3 | . . . . . . . . . . . . . . . . . . . . . . . . . . . . . . . . 3 . . . Alerts 9 | . . . . . . . . . . . . . . . . . . . 1 . . . . . . . . . . . . 7 . 1 . Misdirections 5 | . . . . . . . . . . . . . . . . . . . . . . . . . . . . . . . . 5 . . . Weapon Failures 4 | . . . . . . . . . . . . . . . 1 . . . . . . . . . . . . . . . . 3 . . . Overload Shots 5 | . . . . . . . . . . . . . . . 1 . . . . . . . . . . . . . . . . . . . 4 Effects 1 | . . . . . . . . . . . . . . . . . . . . . . . . . . . . . . . . . . . 1 Energy Bleed 1 | . . . . . . . . . . . . . . . . . . . . . . . . . . . . . . . . . . . 1 Overflow Damage 17507 | . 4 . 18 . . . 115 . . 40 691 61 475 . 297 134 202 486 279 6 . . 148 243 1242 88 70 141 . 1755 921 901 134 8945 111 Projectiles 361 | . 4 . 18 . . . 7 . . . . . . . 31 . 5 . . . . . . . 67 . . . . . . 228 . . 1 Explosions 9121 | . . . . . . . 104 . . . . . . . . . 12 120 . 1 . . . . 7 51 . . . . . 75 . 8751 . Melee 8025 | . . . . . . . 4 . . 40 691 61 475 . 266 134 185 366 279 5 . . 148 243 1168 37 70 141 . 1755 921 598 134 194 110 Knockbacks 35 | . . . 7 1 3 . . . . . 4 3 2 . 2 . 1 3 1 1 . . . . . . . . . . . 7 . . . Impact 16 | . . . . . . . . . . . 4 2 2 . 2 . 1 3 1 1 . . . . . . . . . . . . . . . Kinetic 18 | . . . 7 1 3 . . . . . . . . . . . . . . . . . . . . . . . . . . 7 . . . Secondary 1 | . . . . . . . . . . . . 1 . . . . . . . . . . . . . . . . . . . . . . . Self-Inflicted Damage 629 | . . 61 2 . . . 88 . . . . . . . . . 22 51 . 62 . . . . . 100 . . . . . 243 . . . Shots 13 | . . 2 . . . . 3 . . . . . . . . . 1 1 . 1 . . . . . 2 . . . . . 3 . . . Rammed 1 | . . . 1 . . . . . . . . . . . . . . . . . . . . . . . . . . . . . . . . Targets Rammed 1 | . . . 1 . . . . . . . . . . . . . . . . . . . . . . . . . . . . . . . . Kicked . | . . . . . . . . . . . . . . . . . . . . . . . . . . . . . . . . . . . . Crushed . | . . . . . . . . . . . . . . . . . . . . . . . . . . . . . . . . . . . . Highest Temperature 325 | 18 . 78 249 . 56 165 325 46 14 66 178 . . 105 270 . . 192 120 267 . 112 39 107 20 4 3 204 274 165 140 157 26 . 102 Average Temperature 51 | 10 . 28 73 . 9 85 76 14 10 25 34 . . 56 88 . . 57 65 138 . 40 39 68 13 4 3 26 144 115 102 77 19 . 68 Received Heat Transfer 3062 | . . . 267 . . 90 783 396 . . 81 . . . 4 . 9 72 9 . . . 57 . 259 39 . 18 . 18 27 777 27 99 30 Effects 8 | . . . . . . . 5 . . . . . . . 3 . . . . . . . . . . . . . . . . . . . . Energy Bleed 1 | . . . . . . . 1 . . . . . . . . . . . . . . . . . . . . . . . . . . . . Interference 7 | . . . . . . . 4 . . . . . . . 3 . . . . . . . . . . . . . . . . . . . . Siege Activations . | . . . . . . . . . . . . . . . . . . . . . . . . . . . . . . . . . . . . Martial Activations . | . . . . . . . . . . . . . . . . . . . . . . . . . . . . . . . . . . . . Shielding Activations 1 | . . . . . . . . . . . . . . . . . . . . . . . . . . . . . . . . 1 . . . Total Turns 5 | . . . . . . . . . . . . . . . . . . . . . . . . . . . . . . . . 5 . . . Longest Duration 5 | . . . . . . . . . . . . . . . . . . . . . . . . . . . . . . . . 5 . . . Robots Disrupted 1 | . . . . . . . . . . . . . . . . . . . . . . . . . 1 . . . . . . . . . . Combat Hostiles . | . . . . . . . . . . . . . . . . . . . . . . . . . . . . . . . . . . . . Robots Corrupted 22 | . . . . . . . 1 . . . 5 1 3 . 1 . 3 3 . 1 . . . . 2 . . . . . . 2 . . . Combat Hostiles 5 | . . . . . . . 1 . . . . . . . . . . . . 1 . . . . 2 . . . . . . 1 . . . Parts Fried 52 | . . . . . . . 2 . . 2 14 1 8 . 2 . 10 1 1 5 . . . . 4 . . . . . 1 1 . . . Impact Corruptions 63 | . . . . . . . 1 . . 1 17 2 15 . 7 1 7 9 3 . . . . . . . . . . . . . . . . Robots Melted 14 | . . . . . . . . . . . . . . . . . . . . . . . . . . . . . . . . 6 . 4 4 Combat Hostiles 14 | . . . . . . . . . . . . . . . . . . . . . . . . . . . . . . . . 6 . 4 4 Parts Melted 42 | . . . 1 . . . 4 7 1 . . . . . 1 . . . . 2 . . . . . . . . . . . 19 . . 7 Heat Transferred 14565 | 37 . 185 1585 80 220 345 1974 4175 50 . . . . . 1408 . . 150 . . . . . 111 . . . . . . . 3991 . 120 134 Parts Sabotaged 2 | . . . . . . . . . . . . . . . . . . . . . . . . . . . . . . . . 2 . . . Parts Stolen 2 | . . . . . . . . . . . . . . . . . . . . 2 . . . . . . . . . . . . . . . Parts Stripped . | . . . . . . . . . . . . . . . . . . . . . . . . . . . . . . . . . . . . Power Chain Reactions 1 | . . . . . . . 1 . . . . . . . . . . . . . . . . . . . . . . . . . . . . Alert | -11 -10 -10 -9 -9 -9 -8 -8 -8 -8 -8 -6 -6 -6 -6 -6 -6 -6 -5 -5 -5 -5 -4 -4 -4 -4 -4 -3 -3 -3 -2 -2 -2 -1 -1 -1 ------- Run | Yrd Mat Min Mat Min Exi Min Mat Sto Rec Scr Fac Was Fac Ext Cet Arc Hub Fac Upp Upp Zhi Pro Fac Was Fac Gar Res Arm Lab Res Qua Frg Acc Com Ac0 Maximum Alert Level 5 | . . . 1 . . . 3 2 . . 5 4 4 2 1 1 4 4 . . . . 1 . 5 5 4 3 . 3 5 5 5 5 . Low Security (%) 40 | 100 100 100 59 100 . 100 63 . 100 . 58 . . . 14 93 15 . . . . . 99 100 13 . . . . 45 . . . . . Level 1 15 | . . . 40 . . . 7 83 . . 15 . . 64 85 6 2 . . . . . . . 10 . . . . 18 . . . . . Level 2 7 | . . . . . . . 18 16 . . 2 . 8 35 . . 3 31 . . . . . . 14 . . . . 20 19 . . . . Level 3 12 | . . . . . . . 10 . . . 4 92 79 . . . 54 45 . . . . . . 21 . 16 100 . 16 20 3 . . . Level 4 9 | . . . . . . . . . . . 8 7 11 . . . 23 22 . . . . . . 24 . 83 . . . 28 33 . 7 . Level 5 13 | . . . . . . . . . . . 8 . . . . . . . . . . . . . 7 100 . . . . 31 62 69 92 . High Security . | . . . . . . . . . . . 1 . . . . . . . . . . . . . 8 . . . . . . . 30 . . Max Security . | . . . . . . . . . . . . . . . . . . . . . . . . . . . . . . . . . . . . Peak Influence 2857 | 5 30 77 330 112 . 69 826 423 150 . 1900 1100 1132 612 387 281 1329 1397 . . . . 209 31 2437 2193 1454 941 . 799 1778 2857 1941 1331 . Initial 1713 | . . 1 . 112 . . 1 342 150 . . 1100 696 547 156 136 3 595 . . . . 150 31 . 1705 1233 737 . . 449 954 1713 1241 . Average 568 | 1 2 15 187 18 . 9 245 347 59 . 474 1053 883 401 266 39 840 878 . . . . 95 1 946 1913 1266 850 . 343 1207 1850 1765 1293 . Influence Increases 32765 | 5 72 120 760 10 . 120 1247 763 39 . 2906 45 656 311 636 316 2762 2654 35 121 . 5 717 2 4512 808 781 602 . 1731 2119 3873 318 3520 199 Destroy 0b10 Robot/C 14920 | . . 60 500 . . 80 720 400 . . 1000 . 200 100 260 80 940 1240 . 40 . . 40 . 2440 300 280 160 . 860 860 2020 180 2160 . Destroy 0b10 Robot/NC 1195 | 5 5 5 75 10 . 10 100 85 5 . 155 . 40 10 10 45 65 90 5 5 . 5 25 . 130 5 10 10 . 100 45 105 35 . . Destroy Leader 2302 | . . 10 94 . . 20 164 154 . . 236 . 34 14 20 . 200 200 . 10 . . 28 . 402 30 80 44 . 226 90 192 44 10 . Allied During Kill 6206 | . . . . . . 10 14 13 . . 844 . 268 114 290 125 834 515 . 6 . . 2 . 1062 46 213 60 . 229 720 841 . . . Trap Triggered on 0b10 30 | . . . . . . . . . . . 30 . . . . . . . . . . . . . . . . . . . . . . . . Successful Hack 931 | . 7 . 27 . . . 49 26 4 . 122 . 74 6 . . 43 71 . . . . 23 . 137 22 69 37 . 142 54 . 14 4 . Select Force Hacks 130 | . . . . . . . . . 30 . . . . . . . 100 . . . . . . . . . . . . . . . . . . Disable Machine 1230 | . 30 . . . . . 30 60 . . 30 . 30 30 45 45 180 120 . . . . . . 75 . 15 45 . 15 75 285 30 30 60 Anti-Garrison Action 400 | . . . . . . . . . . . 150 . . . . . 150 . . . . . . . . 100 . . . . . . . . . Destroy Structure 2821 | . . 15 19 . . . 65 10 . . 24 45 10 22 11 21 160 208 . . . . 4 2 76 155 14 36 . 99 60 340 15 1271 139 Advance Influence 150 | . . . . . . . . . . . . . . . . . . . . . . . 150 . . . . . . . . . . . . Partial Spotted 645 | . . . . . . . . . . . 135 . . 15 . . 15 45 . . . . 45 . 60 30 . 135 . 60 15 60 . 30 . Lose Combat Pursuer 1305 | . 30 30 45 . . . 105 15 . . 180 . . . . . 75 165 30 60 . . 300 . 30 120 . 75 . . . 30 . 15 . Miscellaneous 500 | . . . . . . . . . . . . . . . . . . . . . . . 100 . 100 . 100 . . . 200 . . . . Influence Decreases 33200 | 5 66 126 471 299 . 116 439 1190 424 . 1006 1385 533 1149 574 648 1556 2702 747 305 272 5 627 92 2075 1052 1570 1087 919 932 1220 2714 1234 850 4810 Entered New Map 15631 | . . 5 . 177 . . 3 470 235 . . 1235 299 571 124 206 7 621 433 87 272 . . 59 . 732 960 667 919 . 350 744 1144 700 4611 Time Decay 8180 | 5 66 121 451 122 . 116 396 630 189 . 521 150 214 238 410 402 399 571 294 198 . 5 110 33 517 . 150 270 . 482 350 650 80 40 . Lost Part 952 | . . . 20 . . . 40 . . . 30 . . . . . 20 120 . 20 . . 23 . 10 40 . . . 30 . 280 10 110 199 Lost Ally 5193 | . . . . . . . . 90 . . 200 . 20 40 40 40 830 640 20 . . . 205 . 798 280 160 150 . 420 220 1040 . . . Purge Threat 3244 | . . . . . . . . . . . 255 . . 300 . . 300 750 . . . . 289 . 750 . 300 . . . 300 . . . . Squads Dispatched 178 | . 1 . 5 . . . 4 3 . . 27 . 4 . . . 17 23 . . . . 4 . 32 . 4 8 . 13 9 20 3 1 . Investigation 43 | . . . 2 . . . 2 . . . 7 . 1 . . . 6 5 . . . . . . 10 . 1 3 . 4 1 . 1 . . Extermination 33 | . . . . . . . . . . . 5 . 1 . . . 1 4 . . . . 1 . 6 . 1 1 . 5 2 5 1 . . Reinforcement 46 | . 1 . 3 . . . 1 3 . . 7 . 1 . . . 4 7 . . . . 1 . 5 . 1 1 . 4 2 4 1 . . Assault 47 | . . . . . . . 1 . . . 5 . 1 . . . 5 7 . . . . 2 . 6 . 1 3 . . 4 11 . 1 . Garrison 9 | . . . . . . . . . . . 3 . . . . . 1 . . . . . . . 5 . . . . . . . . . . Intercept . | . . . . . . . . . . . . . . . . . . . . . . . . . . . . . . . . . . . . Searches Triggered . | . . . . . . . . . . . . . . . . . . . . . . . . . . . . . . . . . . . . Unchained Authorized 3 | . . . . . . . . . . . . . . . . . 1 1 . . . . 1 . . . . . . . . . . . . Construction Impeded 1 | . . . . . . . . . . . . . . . . . 1 . . . . . . . . . . . . . . . . . . Haulers Reinforced 8 | . . . . . . . . . . . 3 . 1 . . . . 1 . . . . . . 3 . . . . . . . . . . Active Scanning Responses . | . . . . . . . . . . . . . . . . . . . . . . . . . . . . . . . . . . . . Cargo Convoy Interrupts 2 | . . . . . . . . . . . 1 . . . . . . 1 . . . . . . . . . . . . . . . . . Stealth | -11 -10 -10 -9 -9 -9 -8 -8 -8 -8 -8 -6 -6 -6 -6 -6 -6 -6 -5 -5 -5 -5 -4 -4 -4 -4 -4 -3 -3 -3 -2 -2 -2 -1 -1 -1 --------- Run | Yrd Mat Min Mat Min Exi Min Mat Sto Rec Scr Fac Was Fac Ext Cet Arc Hub Fac Upp Upp Zhi Pro Fac Was Fac Gar Res Arm Lab Res Qua Frg Acc Com Ac0 Distress Signals 53 | . 1 . 7 . . . 3 1 . . 3 . 2 . 2 . . 4 . . . . 6 . 4 . . 2 . 2 . 1 2 13 . Communications Jammed 714 | . . . . . . . . . . . 5 . . . . . 4 . . . . 2 . . 179 . 11 12 . 2 . 499 . . . Distress Signals 656 | . . . . . . . . . . . 5 . . . . . 4 . . . . . . . 154 . . 12 . . . 481 . . . Times Spotted 850 | . 9 6 39 1 16 4 62 28 . 21 51 6 7 2 13 26 26 73 2 9 . 2 51 . 79 24 5 16 . 38 17 127 23 43 24 Peak Tracking Total 30 | . 5 3 6 1 8 3 8 3 . 30 12 5 3 1 5 . 9 8 2 4 . 1 30 . 8 7 1 5 . 3 4 10 10 8 8 Tactical Retreats 59 | . 1 1 3 . 5 . 4 1 . 1 5 1 . . . . 1 12 1 3 . . 7 . 1 5 . 2 . . . 2 . 3 . Traps | -11 -10 -10 -9 -9 -9 -8 -8 -8 -8 -8 -6 -6 -6 -6 -6 -6 -6 -5 -5 -5 -5 -4 -4 -4 -4 -4 -3 -3 -3 -2 -2 -2 -1 -1 -1 ------- Run | Yrd Mat Min Mat Min Exi Min Mat Sto Rec Scr Fac Was Fac Ext Cet Arc Hub Fac Upp Upp Zhi Pro Fac Was Fac Gar Res Arm Lab Res Qua Frg Acc Com Ac0 Traps Triggered 51 | . . . 2 . . . 1 1 . . 8 . 2 3 . . . 5 . 1 . . 1 . . 12 . 1 . 2 1 10 1 . . Indirectly . | . . . . . . . . . . . . . . . . . . . . . . . . . . . . . . . . . . . . Trap Hack Attempts . | . . . . . . . . . . . . . . . . . . . . . . . . . . . . . . . . . . . . Triggered . | . . . . . . . . . . . . . . . . . . . . . . . . . . . . . . . . . . . . Disarmed 3 | . . . . . . . 3 . . . . . . . . . . . . . . . . . . . . . . . . . . . . Reprogrammed 4 | . . . . . . . . . . . 4 . . . . . . . . . . . . . . . . . . . . . . . . Reused 7 | . . . . . . . . . . 1 3 . . . . . . . . 3 . . . . . . . . . . . . . . . Traps Extracted . | . . . . . . . . . . . . . . . . . . . . . . . . . . . . . . . . . . . . Installed 7 | . . . . 2 . . . . . 1 . . . . . . . . . 4 . . . . . . . . . . . . . . . Triggered 5 | . . . . . . . . . . . 3 . . . . . . . . 2 . . . . . . . . . . . . . . . Most Traps Carried 4 | . . . . 1 1 1 1 1 1 1 . . . . . . . . 4 4 . . . . . . . . . . . . . . . Objects Rigged 3 | . . . . . . . . . . . . . . . . . 3 . . . . . . . . . . . . . . . . . . Exploded 1 | . . . . . . . . . . . . . . . . . 1 . . . . . . . . . . . . . . . . . . Machines | -11 -10 -10 -9 -9 -9 -8 -8 -8 -8 -8 -6 -6 -6 -6 -6 -6 -6 -5 -5 -5 -5 -4 -4 -4 -4 -4 -3 -3 -3 -2 -2 -2 -1 -1 -1 ---------- Run | Yrd Mat Min Mat Min Exi Min Mat Sto Rec Scr Fac Was Fac Ext Cet Arc Hub Fac Upp Upp Zhi Pro Fac Was Fac Gar Res Arm Lab Res Qua Frg Acc Com Ac0 Machines Disabled 101 | . 3 . . . 2 . 2 4 . 1 3 . 2 3 5 3 13 8 . . . . . . 5 2 1 3 3 1 5 24 2 2 4 Max in Single Turn 8 | . 1 . . . 1 . 1 1 . 1 1 . 1 . 1 . 8 4 . . . . . . 1 1 . 1 1 1 1 1 1 1 1 Garrison Access 16 | . . . . . . . . 1 . . 1 . 1 . . . 2 3 . . . . 3 . . . . . . 1 1 1 2 . . Garrison Relay 2 | . . . . . . . . . . . . . . . . . . . . . . . . . . 2 . . . . . . . . . Network Hub 4 | . . . . . . . . . . . . . . . . . 4 . . . . . . . . . . . . . . . . . . Energy Cycler 1 | . . . . . . . . . . . . . . 1 . . . . . . . . . . . . . . . . . . . . . Machines Repaired . | . . . . . . . . . . . . . . . . . . . . . . . . . . . . . . . . . . . . Machines Dismantled . | . . . . . . . . . . . . . . . . . . . . . . . . . . . . . . . . . . . . Machines Sabotaged 2 | . . . . . . . . . . . . . . . . . 2 . . . . . . . . . . . . . . . . . . Overloaded Fab Kills . | . . . . . . . . . . . . . . . . . . . . . . . . . . . . . . . . . . . . Hacking | -11 -10 -10 -9 -9 -9 -8 -8 -8 -8 -8 -6 -6 -6 -6 -6 -6 -6 -5 -5 -5 -5 -4 -4 -4 -4 -4 -3 -3 -3 -2 -2 -2 -1 -1 -1 --------- Run | Yrd Mat Min Mat Min Exi Min Mat Sto Rec Scr Fac Was Fac Ext Cet Arc Hub Fac Upp Upp Zhi Pro Fac Was Fac Gar Res Arm Lab Res Qua Frg Acc Com Ac0 Machines Accessed 181 | . 3 . 4 . 1 1 12 10 4 . 21 . 11 5 1 . 13 16 . 1 4 . 6 . 24 1 8 8 . 11 7 4 4 1 . Terminals 108 | . 3 . 3 . . 1 8 9 2 . 10 . 4 5 1 . 11 8 . . . . 4 . 11 1 5 5 . 5 6 3 2 1 . Fabricators 23 | . . . . . . . . . . . 6 . 1 . . . . 5 . . . . . . 6 . . 3 . 2 . . . . . Repair Stations 4 | . . . 1 . . . 2 . . . . . . . . . . . . . . . . . 1 . . . . . . . . . . Recycling Units 13 | . . . . . . . . . 2 . 3 . 2 . . . . . . . . . . . 3 . 1 . . 2 . . . . . Scanalyzers 11 | . . . . . . . 2 . . . 1 . 3 . . . . . . . . . . . 2 . 2 . . 1 . . . . . Garrison Access 16 | . . . . . . . . 1 . . 1 . 1 . . . 2 3 . . . . 2 . 1 . . . . 1 1 1 2 . . Total Hacks 636 | . 7 . 10 . 4 2 47 24 9 . 81 . 22 16 2 . 48 70 . 1 17 . 25 . 103 8 37 22 . 38 23 7 11 2 . Successful 336 | . 1 . 4 . 4 1 28 11 4 . 47 . 12 5 . . 22 33 . 1 17 . 11 . 65 2 15 12 . 23 9 3 5 1 . Failed 297 | . 6 . 5 . . . 19 13 5 . 34 . 10 11 2 . 26 37 . . . . 14 . 38 6 21 10 . 15 14 4 6 1 . Catastrophic 61 | . 1 . 2 . . . . 1 1 . 10 . 1 3 1 . 3 11 . . . . 1 . 10 1 3 6 . . 4 1 1 . . Database Lockouts 3 | . . . 1 . . 1 . . . . . . . . . . . . . . . . . . . . 1 . . . . . . . . Manual 227 | . 7 . 7 . 1 2 19 15 3 . 32 . 1 10 1 . 32 27 . . . . 11 . 26 7 8 12 . 5 1 . . . . Terminals 415 | . 7 . 8 . . 2 30 23 4 . 41 . 8 16 2 . 43 38 . . . . 21 . 62 8 32 14 . 18 22 6 8 2 . Fabricators 87 | . . . . . . . . . . . 28 . 3 . . . . 23 . . . . . . 16 . . 8 . 9 . . . . . Repair Stations 10 | . . . 2 . . . 7 . . . . . . . . . . . . . . . . . 1 . . . . . . . . . . Recycling Units 32 | . . . . . . . . . 5 . 8 . 2 . . . . . . . . . . . 11 . 1 . . 5 . . . . . Scanalyzers 35 | . . . . . . . 10 . . . 1 . 7 . . . . . . . . . . . 9 . 4 . . 4 . . . . . Garrison Access 35 | . . . . . . . . 1 . . 3 . 2 . . . 5 9 . . . . 4 . 4 . . . . 2 1 1 3 . . Terminal Hacks 144 | . 1 . 1 . 4 1 5 5 . . 16 . 3 5 . . 7 13 . 1 17 . 7 . 27 2 8 3 . 6 7 2 2 1 . Record 9 | . . . . . 4 . . . . . . . . . . . . . . . 5 . . . . . . . . . . . . . . Part Schematic 13 | . 1 . . . . . 1 . . . . . . . . . . . . . 4 . . . 7 . . . . . . . . . . Robot Analysis 6 | . . . 1 . . 1 . . . . . . . . . . . . . . 4 . . . . . . . . . . . . . . Prototype ID Bank 7 | . . . . . . . 1 . . . . . . . . . . . . . 4 . . . 2 . . . . . . . . . . Open Door 11 | . . . . . . . . 3 . . . . . 2 . . . . . 1 . . . . . . . 1 . . 1 . 2 1 . Open DSF 1 | . . . . . . . . . . . . . 1 . . . . . . . . . . . . . . . . . . . . . . Level Access Points 1 | . . . . . . . . . . . . . . . . . . . . . . . . . . . . 1 . . . . . . . Branch Access Points 6 | . . . . . . . 1 . . . . . 1 . . . . 1 . . . . . . 1 . 1 . . 1 . . . . . Emergency Access Points 2 | . . . . . . . . . . . . . . . . . . 1 . . . . . . . 1 . . . . . . . . . Machine Index 2 | . . . . . . . . . . . . . . . . . . . . . . . . . . . 1 . . 1 . . . . . Terminal Index 3 | . . . . . . . . . . . . . . . . . . 1 . . . . 1 . . . . . . 1 . . . . . Fabricator Index 2 | . . . . . . . . . . . 1 . . . . . . . . . . . . . . . 1 . . . . . . . . Garrison Index 1 | . . . . . . . . . . . . . . . . . . 1 . . . . . . . . . . . . . . . . . Alert Level 2 | . . . . . . . . . . . . . . 1 . . . 1 . . . . . . . . . . . . . . . . . Unreport Threat 28 | . . . . . . . . . . . 3 . . 2 . . 2 5 . . . . 3 . 6 . 3 . . . 4 . . . . Locate Traps 16 | . . . . . . . 1 . . . 3 . 1 . . . 3 . . . . . . . 4 . . 1 . 1 1 1 . . . Disarm Traps 1 | . . . . . . . 1 . . . . . . . . . . . . . . . . . . . . . . . . . . . . Reprogram Traps 1 | . . . . . . . . . . . 1 . . . . . . . . . . . . . . . . . . . . . . . . Maintenance Status 1 | . . . . . . . . . . . 1 . . . . . . . . . . . . . . . . . . . . . . . . Recall Investigation 3 | . . . . . . . . . . . 1 . . . . . 1 . . . . . . . 1 . . . . . . . . . . Recall Extermination 3 | . . . . . . . . . . . 1 . . . . . . . . . . . . . . . 1 . . . 1 . . . . Recall Reinforcements 4 | . . . . . . . . . . . 1 . . . . . . . . . . . . . 3 . . . . . . . . . . Hauler Manifests 2 | . . . . . . . . 1 . . . . . . . . . . . . . . . . 1 . . . . . . . . . . Registered Components 3 | . . . . . . . . . . . 1 . . . . . . . . . . . 1 . . . . . . 1 . . . . . Registered Prototypes 1 | . . . . . . . . . . . . . . . . . . . . . . . . . . . 1 . . . . . . . . Zone Layout 13 | . . . . . . . . 1 . . 3 . . . . . 1 3 . . . . 2 . 2 . . . . 1 . . . . . Garrison Registry 1 | . . . . . . . . . . . . . . . . . . . . . . . . . . 1 . . . . . . . . . Proto ID Catalog 1 | . . . . . . . . . . . . . . . . . . . . . . . . . . . . . . . . 1 . . . Fabricator Hacks 46 | . . . . . . . . . . . 13 . 2 . . . . 10 . . . . . . 8 . . 5 . 8 . . . . . Network Status 2 | . . . . . . . . . . . . . . . . . . 1 . . . . . . 1 . . . . . . . . . . Load Schematic 27 | . . . . . . . . . . . 8 . 1 . . . . 5 . . . . . . 5 . . 4 . 4 . . . . . Build 17 | . . . . . . . . . . . 5 . 1 . . . . 4 . . . . . . 2 . . 1 . 4 . . . . . Repair Station Hacks 8 | . . . 2 . . . 6 . . . . . . . . . . . . . . . . . . . . . . . . . . . . Scan Component 4 | . . . 1 . . . 3 . . . . . . . . . . . . . . . . . . . . . . . . . . . . Repair 4 | . . . 1 . . . 3 . . . . . . . . . . . . . . . . . . . . . . . . . . . . Recycling Unit Hacks 11 | . . . . . . . . . 2 . 3 . . . . . . . . . . . . . 5 . . . . 1 . . . . . Report Inventory 6 | . . . . . . . . . 2 . 2 . . . . . . . . . . . . . 2 . . . . . . . . . . Retrieve Components 5 | . . . . . . . . . . . 1 . . . . . . . . . . . . . 3 . . . . 1 . . . . . Scanalyzer 23 | . . . . . . . 6 . . . . . 5 . . . . . . . . . . . 9 . 1 . . 2 . . . . . Insert Component 9 | . . . . . . . 3 . . . . . 2 . . . . . . . . . . . 3 . . . . 1 . . . . . Analyze 5 | . . . . . . . 1 . . . . . 2 . . . . . . . . . . . 2 . . . . . . . . . . Retrieve Study 9 | . . . . . . . 2 . . . . . 1 . . . . . . . . . . . 4 . 1 . . 1 . . . . . Garrison Access Hacks 16 | . . . . . . . . 1 . . . . 1 . . . 1 3 . . . . 2 . 1 . . . . 2 1 1 3 . . Unlock Access 1 | . . . . . . . . . . . . . . . . . . . . . . . . . 1 . . . . . . . . . . Seal Access 13 | . . . . . . . . 1 . . . . 1 . . . 1 3 . . . . 2 . . . . . . 1 1 1 2 . . Coupler Status 2 | . . . . . . . . . . . . . . . . . . . . . . . . . . . . . . 1 . . 1 . . Unauthorized Hacks 88 | . . . 1 . . . 11 5 2 . 15 . 1 . . . 14 7 . . . . 2 . 15 . 6 4 . 4 1 . . . . Terminals 58 | . . . 1 . . . 11 5 1 . 5 . . . . . 14 1 . . . . 2 . 6 . 5 3 . 3 1 . . . . Track 9 | . . . . . . . 1 . . . 2 . . . . . 4 . . . . . 1 . 1 . . . . . . . . . . Assimilate 8 | . . . . . . . 1 . . . . . . . . . 1 . . . . . . . 1 . 2 2 . 1 . . . . . Botnet 17 | . . . 1 . . . 2 1 . . 2 . . . . . 1 1 . . . . 1 . 3 . 1 1 . 2 1 . . . . Detonate 3 | . . . . . . . . . . . . . . . . . 3 . . . . . . . . . . . . . . . . . . Operators 3 | . . . . . . . 1 . . . . . . . . . . . . . . . . . 1 . 1 . . . . . . . . Skim 13 | . . . . . . . 6 4 1 . 1 . . . . . . . . . . . . . . . 1 . . . . . . . . Sabotage 5 | . . . . . . . . . . . . . . . . . 5 . . . . . . . . . . . . . . . . . . Fabricators 18 | . . . . . . . . . . . 8 . . . . . . 5 . . . . . . 4 . . 1 . . . . . . . Prioritize 9 | . . . . . . . . . . . 3 . . . . . . 4 . . . . . . 2 . . . . . . . . . . Liberate 2 | . . . . . . . . . . . 2 . . . . . . . . . . . . . . . . . . . . . . . . Haulers 3 | . . . . . . . . . . . 1 . . . . . . 1 . . . . . . 1 . . . . . . . . . . Recompile 4 | . . . . . . . . . . . 2 . . . . . . . . . . . . . 1 . . 1 . . . . . . . Repair Stations 1 | . . . . . . . . . . . . . . . . . . . . . . . . . 1 . . . . . . . . . . Mechanics 1 | . . . . . . . . . . . . . . . . . . . . . . . . . 1 . . . . . . . . . . Recycling Units 10 | . . . . . . . . . 1 . 2 . 1 . . . . . . . . . . . 4 . 1 . . 1 . . . . . Monitor 1 | . . . . . . . . . . . . . . . . . . . . . . . . . 1 . . . . . . . . . . Reject 1 | . . . . . . . . . . . . . . . . . . . . . . . . . 1 . . . . . . . . . . Recyclers 5 | . . . . . . . . . . . 1 . 1 . . . . . . . . . . . 1 . 1 . . 1 . . . . . Mask 2 | . . . . . . . . . . . 1 . . . . . . . . . . . . . 1 . . . . . . . . . . Tunnel 1 | . . . . . . . . . 1 . . . . . . . . . . . . . . . . . . . . . . . . . . Scanalyzers . | . . . . . . . . . . . . . . . . . . . . . . . . . . . . . . . . . . . . Garrison Access 1 | . . . . . . . . . . . . . . . . . . 1 . . . . . . . . . . . . . . . . . Broadcast 1 | . . . . . . . . . . . . . . . . . . 1 . . . . . . . . . . . . . . . . . Data Cores Recovered 10 | . . . . . . . . 1 . . 1 . 1 . . . . 1 . . . . . . 2 . . . . 2 1 1 . . . Used 2 | . . . . . . . . . . . 1 . . . . . . 1 . . . . . . . . . . . . . . . . . Hacking Detections 125 | . 3 . 3 . . 1 10 8 3 . 17 . 10 3 1 . 9 11 . . . . 4 . 19 1 5 4 . 6 5 1 1 . . Full Trace Events 21 | . . . . . . . 1 . 2 . 5 . 1 . . . 1 4 . . . . . . 4 . . 1 . 2 . . . . . Feedback Events 1 | . . . . . . . . . . . . . . . . . . . . . . . . . 1 . . . . . . . . . . Corruption 1 | . . . . . . . . . . . . . . . . . . . . . . . . . 1 . . . . . . . . . . Feedback Blocked . | . . . . . . . . . . . . . . . . . . . . . . . . . . . . . . . . . . . . Robot Schematics Acquired 5 | . . . . . . . . . . . . . . . . . . . . . . . . . . . . . . . 5 . . . . Robots Built . | . . . . . . . . . . . . . . . . . . . . . . . . . . . . . . . . . . . . Authchips . | . . . . . . . . . . . . . . . . . . . . . . . . . . . . . . . . . . . . Time . | . . . . . . . . . . . . . . . . . . . . . . . . . . . . . . . . . . . . Total Robot Build Rating . | . . . . . . . . . . . . . . . . . . . . . . . . . . . . . . . . . . . . Part Schematics Acquired 36 | . 1 . . . . . 2 . . 1 . . 2 . . . . . . . 4 . . . 8 . . . . . 17 1 . . . Parts Built 17 | . . . . . . . . . . . 5 . 1 . . . . 4 . . . . . . 2 . . 1 . 4 . . . . . Authchips 5 | . . . . . . . . . . . 2 . . . . . . . . . . . . . . . . 1 . 2 . . . . . Time 862 | . . . . . . . . . . . 228 . 50 . . . . 208 . . . . . . 152 . . 50 . 174 . . . . . Total Part Build Rating 81 | . . . . . . . . . . . 25 . 5 . . . . 18 . . . . . . 10 . . 5 . 18 . . . . . Part Studies Acquired 9 | . . . . . . . 2 . . . . . 1 . . . . . . . . . . . 4 . 1 . . 1 . . . . . Parts Repaired 4 | . . . 1 . . . 3 . . . . . . . . . . . . . . . . . . . . . . . . . . . . Time 115 | . . . 13 . . . 102 . . . . . . . . . . . . . . . . . . . . . . . . . . . . Parts Recycled . | . . . . . . . . . . . . . . . . . . . . . . . . . . . . . . . . . . . . Recycled Matter . | . . . . . . . . . . . . . . . . . . . . . . . . . . . . . . . . . . . . Retrieved Matter . | . . . . . . . . . . . . . . . . . . . . . . . . . . . . . . . . . . . . Retrieved Components 24 | . . . . . . . . . . . 2 . . . . . . . . . . . . . 12 . . . . 10 . . . . . Parts Scanalyzed 5 | . . . . . . . 2 . . . . . 2 . . . . . . . . . . . 1 . . . . . . . . . . Part Schematics Acquired 4 | . . . . . . . 1 . . . . . 2 . . . . . . . . . . . 1 . . . . . . . . . . Parts Damaged 1 | . . . . . . . 1 . . . . . . . . . . . . . . . . . . . . . . . . . . . . Bothacking | -11 -10 -10 -9 -9 -9 -8 -8 -8 -8 -8 -6 -6 -6 -6 -6 -6 -6 -5 -5 -5 -5 -4 -4 -4 -4 -4 -3 -3 -3 -2 -2 -2 -1 -1 -1 ------------ Run | Yrd Mat Min Mat Min Exi Min Mat Sto Rec Scr Fac Was Fac Ext Cet Arc Hub Fac Upp Upp Zhi Pro Fac Was Fac Gar Res Arm Lab Res Qua Frg Acc Com Ac0 Used RIF Installer 1 | . . . . . . . . . . . . . . . . . . . . . . . . . . 1 . . . . . . . . . Robots Hacked 15 | . . . . 1 1 . . . . 1 . . 3 3 . . . 1 . . 3 . . . . 2 . . . . . . . . . Non-combat 8 | . . . . . 1 . . . . 1 . . 3 2 . . . 1 . . . . . . . . . . . . . . . . . Combat 7 | . . . . 1 . . . . . . . . . 1 . . . . . . 3 . . . . 2 . . . . . . . . . Robot Hacks Applied 15 | . . . . 1 1 . . . . 1 . . 3 3 . . . 1 . . 3 . . . . 2 . . . . . . . . . parse_system 10 | . . . . 1 1 . . . . 1 . . 1 3 . . . . . . 3 . . . . . . . . . . . . . . find_fabricator 1 | . . . . . . . . . . . . . 1 . . . . . . . . . . . . . . . . . . . . . . find_recycling 1 | . . . . . . . . . . . . . . . . . . 1 . . . . . . . . . . . . . . . . . find_station 1 | . . . . . . . . . . . . . 1 . . . . . . . . . . . . . . . . . . . . . . formatsys_high 2 | . . . . . . . . . . . . . . . . . . . . . . . . . . 2 . . . . . . . . . Relay Couplers Released 21 | . . . . . . . . . . . 3 . 2 . . . . . . . . . 3 . . 8 . . . 1 3 . 1 . . Machine Destruction 21 | . . . . . . . . . . . 3 . 2 . . . . . . . . . 3 . . 8 . . . 1 3 . 1 . . Attached 2 | . . . . . . . . . . . . . . . . . . . . . . . . . . 1 . . . . . . 1 . . Fabnet Peak Effective % . | . . . . . . . . . . . . . . . . . . . . . . . . . . . . . . . . . . . . Robots Rewired 10 | . . . . . . . . . . . . . . . . . . . . . . . . . . 9 . 1 . . . . . . . Allies Hacked 20 | . . . . . . . . . . . 2 . . . . . . 2 . . . . 1 . 3 . 1 1 . 6 3 1 . . . Hacks Repelled . | . . . . . . . . . . . . . . . . . . . . . . . . . . . . . . . . . . . . Allies | -11 -10 -10 -9 -9 -9 -8 -8 -8 -8 -8 -6 -6 -6 -6 -6 -6 -6 -5 -5 -5 -5 -4 -4 -4 -4 -4 -3 -3 -3 -2 -2 -2 -1 -1 -1 -------- Run | Yrd Mat Min Mat Min Exi Min Mat Sto Rec Scr Fac Was Fac Ext Cet Arc Hub Fac Upp Upp Zhi Pro Fac Was Fac Gar Res Arm Lab Res Qua Frg Acc Com Ac0 Total Allies 347 | . . . . 2 1 . . . . . 45 19 4 13 5 . 26 37 . 2 . . 11 . 58 11 14 3 . 31 59 6 . . . Largest Group 59 | . . . . 1 1 1 1 . . . 23 19 19 27 29 22 27 21 . 2 . . 5 . 15 9 18 10 . 8 59 50 . . . Highest-Rated Group 1300 | . . . . 45 55 55 47 . . . 318 702 571 878 1300 923 872 207 . 163 . . 50 . 149 262 403 189 . 80 567 491 . . . Highest-Rated Ally 159 | . . . . 45 55 55 47 . . . 32 50 46 159 159 96 96 10 . 141 . . 10 . 40 56 56 56 . 10 10 10 . . . Total Orders 39 | . . . . 1 1 . . 4 . 4 . . . . 4 2 1 . 2 . . . . . 20 . . . . . . . . . . STAY 10 | . . . . 1 1 . . . . 3 . . . . 2 1 1 . . . . . . . 1 . . . . . . . . . . FOLLOW 3 | . . . . . . . . . . . . . . . 2 1 . . . . . . . . . . . . . . . . . . . EXPLORE 26 | . . . . . . . . 4 . 1 . . . . . . . . 2 . . . . . 19 . . . . . . . . . . Ally Attacks 3186 | . . . . 23 2 10 . . . 13 317 96 81 68 115 42 331 351 . 5 . . 43 . 581 71 100 38 . 263 228 408 . . . Total Damage 49099 | . . . . 574 55 286 . . . 619 4447 3757 1151 1308 1888 832 6162 4362 . 286 . . 545 . 7702 1092 1497 487 . 3473 3237 5339 . . . Kills 458 | . . . . 1 . 2 . . . 5 54 8 13 8 16 4 55 66 . 2 . . 3 . 103 7 13 3 . 23 32 40 . . . Allies Corrupted 36 | . . . . . . . . . . . 2 1 . . 1 . 13 5 . . . . 1 . 5 1 . . . 2 4 1 . . . Allies Melted 1 | . . . . . . . . . . . 1 . . . . . . . . . . . . . . . . . . . . . . . . Turrets Deployed 1 | . . . . . . . . . . 1 . . . . . . . . . . . . . . . . . . . . . . . . . Intel | -11 -10 -10 -9 -9 -9 -8 -8 -8 -8 -8 -6 -6 -6 -6 -6 -6 -6 -5 -5 -5 -5 -4 -4 -4 -4 -4 -3 -3 -3 -2 -2 -2 -1 -1 -1 ------- Run | Yrd Mat Min Mat Min Exi Min Mat Sto Rec Scr Fac Was Fac Ext Cet Arc Hub Fac Upp Upp Zhi Pro Fac Was Fac Gar Res Arm Lab Res Qua Frg Acc Com Ac0 Active Infowar (turns) 27307 | 15 667 399 76 . 1861 . 285 4 . 525 1805 316 459 504 899 3476 1022 1656 640 416 169 1138 210 762 2047 514 317 580 125 1254 782 2383 250 1295 456 Optics 10362 | . . . . . . . . . . . 879 . . . . . . . . . . . . . 1527 514 317 580 125 1254 782 2383 250 1295 456 Sensors 16392 | . . . . . . . . . . 525 772 316 459 504 629 3476 966 1626 294 416 169 1120 210 . 1595 8 317 539 14 1229 779 218 210 1 . IFF 1640 | . . . . . . . . . . . 466 . . . . . 56 25 . . . . . 762 331 . . . . . . . . . . Terrain 1078 | . . . . . . . . . . . 59 . . . . . . 101 640 277 . . . . . . 1 . . . . . . . . Structural 1053 | . . 107 76 . . . 285 . . . . . . . . . . 432 153 . . . . . . . . . . . . . . . . Seismic 1411 | 15 667 292 . . . . . . . . 437 . . . . . . . . . . . . . . . . . . . . . . . . T.N.C. 1861 | . . . . . 1861 . . . . . . . . . . . . . . . . . . . . . . . . . . . . . . Cloaking 1512 | . . . . . . . . . . . . . . . . . . . . . . . . 1 . . . . . . . 171 250 827 263 Jamming 12723 | . . . . . . . . 4 . . 917 . 200 504 685 3476 201 844 . . . 1029 . 20 1035 297 280 424 . 1213 722 872 . . . ECM 1 | . . . . . . . . . . . . . . . . . . . . . . . . . . . . . . . 1 . . . . Robot Analysis Total 6 | . . . 1 . . 1 . . . . . . . . . . . . . . 4 . . . . . . . . . . . . . . Derelict Logs Recovered 6 | . . . . 1 . . . . . . . . . . . . . . 1 1 . 3 . . . . . . . . . . . . . Drone Launches 42 | . . . . . . . . 14 . 2 . . . . . . . . 4 . . . . . 22 . . . . . . . . . . Drone Recoveries 20 | . . . . . . . . . . . . . . . . . . . 2 . . . . . 18 . . . . . . . . . . Exploration | -11 -10 -10 -9 -9 -9 -8 -8 -8 -8 -8 -6 -6 -6 -6 -6 -6 -6 -5 -5 -5 -5 -4 -4 -4 -4 -4 -3 -3 -3 -2 -2 -2 -1 -1 -1 ------------- Run | Yrd Mat Min Mat Min Exi Min Mat Sto Rec Scr Fac Was Fac Ext Cet Arc Hub Fac Upp Upp Zhi Pro Fac Was Fac Gar Res Arm Lab Res Qua Frg Acc Com Ac0 Turns Passed 37856 | 64 667 730 1269 746 3015 887 2255 2194 446 1858 1811 316 459 504 985 3476 1034 1730 640 416 169 1138 244 797 2050 514 317 580 125 1254 782 2383 250 1295 456 Spaces Moved 37867 | 45 418 481 555 452 1321 392 739 782 206 1205 3449 385 1105 771 763 930 1692 3226 821 704 159 518 683 499 4158 704 612 1236 276 2869 1639 1942 484 1113 533 Core 438 | 1 . . . . . . . . . . . . . . 5 425 . . . . . . . . . . . . . . . 3 . 4 . Treads 692 | . . . 67 . . . 63 . . . . . . . . . . . . . . . . 470 92 . . . . . . . . . . Legs 1236 | . . . . . . . . . . . . . . . . . . . . 125 159 500 . . . . . . . . . 452 . . . Wheels 5819 | 44 418 481 488 452 1321 392 676 782 206 556 . . . . . . . . . . . . . . . . . . . . . 3 . . . Hover 2692 | . . . . . . . . . . . . . . . . . 2 . . . . . . . . . . . . . . 564 484 1109 533 Flight 26990 | . . . . . . . . . . 649 3449 385 1105 771 758 505 1690 3226 821 579 . 18 683 29 4066 704 612 1236 276 2869 1639 920 . . . Fastest Speed 17 | 50 95 120 120 135 90 210 200 215 215 26 23 25 25 25 25 26 26 24 25 25 90 28 25 40 21 22 19 17 20 19 19 19 36 33 36 Average Speed 62 | 87 115 120 143 135 133 210 227 236 215 113 24 25 25 25 30 334 26 25 25 43 90 88 28 145 28 28 22 20 20 19 19 68 36 49 47 Slowest Speed 1350 | 95 120 120 240 135 210 210 565 410 215 215 98 25 25 25 450 700 92 99 26 105 90 170 235 160 240 108 101 21 20 20 88 800 36 1350 98 Overloaded Moves 22 | . . . . . . . . . . . . . . . . . . . . . . . . . . 7 . 14 . . . 1 . . . Propulsion Burnouts . | . . . . . . . . . . . . . . . . . . . . . . . . . . . . . . . . . . . . Robots Hopped 160 | . . . . . . . . . . 12 29 2 10 4 1 7 31 11 1 1 . . 6 . 17 5 4 1 . 6 11 1 . . . Potential Cave-ins 3 | . . . . . . . . . . . . . . . . . . 3 . . . . . . . . . . . . . . . . . Cave-ins Triggered . | . . . . . . . . . . . . . . . . . . . . . . . . . . . . . . . . . . . . Teleports 76 | . . . . . . . . . . . . . . . . . . . . . . . . . . . . . . . . 9 14 41 12 Exploration Rate (%) 62 | 3 44 94 47 64 89 97 67 92 47 60 53 93 28 84 80 91 84 60 82 69 60 69 23 96 73 62 19 64 95 35 90 50 21 34 38 Regions Visited 35 Branch Regions 21 Pre-discovered Areas 12 | . . 1 . . 1 . 4 . 1 1 . . . . . . . . . . 3 1 . . . . . . . . . . . . . Known Exits Taken 19 | . . . . . . . 1 . . . . . 1 1 1 1 1 1 1 1 1 1 . . 1 . 1 1 1 1 1 1 1 . . Unknown Exits Taken 11 | 1 1 1 1 1 1 1 . 1 1 1 . . . . . . . . . . . . . . . . . . . . . . . 1 . Scrap Searched 18 | . . 1 . 2 . 1 . . . 3 . . . . . . . . 3 4 . 4 . . . . . . . . . . . . . Spaces Dug 1437 | . . 9 16 . 18 . 27 3 . . 21 . 9 10 9 13 6 103 3 1 . 10 2 . 28 89 7 18 . 33 20 22 4 954 2 Terrain Destroyed 1826 | . . 17 16 . 31 . 61 3 . . 27 . 9 10 9 26 175 136 3 12 . 12 2 1 41 89 7 18 . 33 20 71 5 955 37 Melee 212 | . . . . . . . 1 3 . . 9 . 9 10 9 13 6 14 1 1 . 7 2 . 16 14 7 16 . 33 20 13 4 3 1 Projectile 148 | . . . . . . . 11 . . . 18 . . . . 13 . 15 2 . . 5 . 1 14 . . 1 . . . 32 1 1 34 AOE 1450 | . . 17 16 . 31 . 49 . . . . . . . . . 169 107 . 11 . . . . 11 75 . . . . . 13 . 951 . Terrain Rammed . | . . . . . . . . . . . . . . . . . . . . . . . . . . . . . . . . . . . . Walls Destroyed . | . . . . . . . . . . . . . . . . . . . . . . . . . . . . . . . . . . . . Machines Disabled . | . . . . . . . . . . . . . . . . . . . . . . . . . . . . . . . . . . . . Actions | -11 -10 -10 -9 -9 -9 -8 -8 -8 -8 -8 -6 -6 -6 -6 -6 -6 -6 -5 -5 -5 -5 -4 -4 -4 -4 -4 -3 -3 -3 -2 -2 -2 -1 -1 -1 --------- Run | Yrd Mat Min Mat Min Exi Min Mat Sto Rec Scr Fac Was Fac Ext Cet Arc Hub Fac Upp Upp Zhi Pro Fac Was Fac Gar Res Arm Lab Res Qua Frg Acc Com Ac0 Total 49991 | 61 564 620 864 544 2391 423 1143 963 208 1685 4228 591 1247 1059 1392 1194 2212 3966 1222 788 183 1190 727 556 4893 978 780 1518 349 3551 2081 2801 543 1819 657 Wait 8222 | 2 94 125 163 44 808 4 179 18 2 449 511 203 127 235 472 173 510 490 372 28 3 632 14 3 482 161 144 154 29 473 344 229 13 529 3 Move 37533 | 44 417 480 554 451 1320 391 738 781 205 1184 3393 381 1084 762 760 915 1635 3205 818 701 158 517 671 498 4123 694 603 1233 275 2856 1619 1939 483 1112 533 Hop 141 | . . . . . . . . . . 8 27 1 10 4 1 7 25 9 1 1 . . 6 . 17 4 4 1 . 6 8 1 . . . Pick Up 353 | 5 16 2 6 8 26 9 31 15 . 8 22 . 2 . 2 1 5 14 6 8 2 3 3 2 19 7 3 10 11 11 3 55 2 22 14 Fast Attach 366 | 7 . . 12 . 9 . 16 8 . 10 34 . . . 16 5 4 30 1 10 6 2 6 16 21 5 5 14 . 9 11 77 3 18 11 Attach 180 | . . 1 1 . 9 . 7 . . 3 10 . 1 . 3 . 2 19 4 . 2 4 . 5 7 8 1 2 . 7 . 42 2 24 16 Detach 77 | . . . . . 2 . 3 . . 1 8 . . . 2 . 1 16 . . . 1 1 3 2 2 . . . 2 . 21 . 10 2 Swap 316 | 1 5 3 16 3 7 . 29 17 . 1 28 . 1 . 5 1 7 15 4 8 2 9 3 6 26 9 1 13 1 6 8 56 4 10 11 Drop 504 | . 9 1 23 11 15 . 36 24 . 17 39 . 2 . 20 6 7 15 2 13 7 6 7 9 43 5 7 25 11 14 13 87 2 23 5 Fire 977 | 2 23 8 88 24 192 19 99 85 1 . 21 . . . 95 71 1 21 2 1 3 5 . 4 49 8 . 23 . . 1 90 1 10 30 Melee 1001 | . . . . 1 3 . 5 8 . 3 61 6 20 13 16 15 15 72 12 14 . 11 16 7 102 35 12 36 22 147 74 149 33 61 32 Ram 1 | . . . 1 . . . . . . . . . . . . . . . . . . . . . . . . . . . . . . . . Kick . | . . . . . . . . . . . . . . . . . . . . . . . . . . . . . . . . . . . . Crush . | . . . . . . . . . . . . . . . . . . . . . . . . . . . . . . . . . . . . Escape Stasis 268 | . . . . . . . . . . . 73 . . 45 . . . 60 . . . . . . . 20 . . . 15 . 55 . . . Rewire 37 | . . . . . . . . . . . 1 . . . . . . . . . . . . 3 1 20 . 7 . 5 . . . . . Trap 7 | . . . . 2 . . . . . 1 . . . . . . . . . 4 . . . . . . . . . . . . . . . Miscellaneous 8 | . . . . . . . . 7 . . . . . . . . . . . . . . . . 1 . . . . . . . . . . Route ------- -11/Scrapyard -10/Materials (discovered 2 exits: *Mat / [*Min]) -10/Mines (discovered 3 exits: *Mat x2 / [*Sub]) -9/Materials (discovered 3 exits: *Mat / [*Min x2]) -9/Mines (discovered 2 exits: *Mat / *Exi) -9/Exiles (discovered 2 exits: *Min x2) -8/Mines (discovered 2 exits: *Mat x2) -8/Materials (discovered 5 exits: *Fac x3 / *Sto x2) -8/Storage (discovered 2 exits: *Fac / *Rec) -8/Recycling (discovered 2 exits: *Fac / [*Scr]) -8/Scraptown -6/Factory (discovered 5 exits: *Fac x3 / *Low x2) -6/Waste -6/Factory (discovered 4 exits: Low x2 / *Ext x2) -6/Extension (discovered 3 exits: *Fac x2 / *Cet) -6/Cetus (discovered 2 exits: *Fac / *Arc) -6/Archives (discovered 3 exits: *Fac / *Hub x2) -6/Hub_04(d) (discovered 3 exits: *Fac x3) -5/Factory (discovered 4 exits: *Fac x2 / *Upp x2) -5/Upper Caves -5/Upper Caves (discovered 2 exits: *Zhi / *Fac) -5/Zhirov -4/Proximity Caves -4/Factory -4/Waste -4/Factory (discovered 5 exits: *Res x2 / *Upp x2 / Gar) -4/Garrison (discovered 3 exits: *Res x3) -3/Research (discovered 4 exits: *Res / *Arm / *Tes x2) -3/Armory (discovered 3 exits: Res x2 / *Lab) -3/Lab -2/Research (discovered 3 exits: *Acc / *Qua x2) -2/Quarantine (discovered 3 exits: *Acc / *Sec / *Frg) -2/Protoforge -1/Access -1/Command (discovered 3 exits: [*Sur x2] / [*Ac0]) -1/Access_0 History --------- Turn | Location | Event 13 | -11/Scrapyard | Discovered new exit (range 15) 65 | -11/Scrapyard | Entered Materials 154 | -10/Materials | Discovered new exit (range 13) 300 | -10/Materials | Build established: Mutant 406 | -10/Materials | Discovered new exit (range 13) 732 | -10/Materials | Entered Mines 747 | -10/Mines | Found DCF Scrap (16 items) 772 | -10/Mines | Discovered new exit (range 9) 1023 | -10/Mines | Discovered new exit (range 9) 1028 | -10/Mines | Destroyed YI-UF0 1128 | -10/Mines | Discovered new exit (range 4) 1352 | -10/Mines | A weapon hastily lodged in a ceiling crevice suddenly fell to the ground 1382 | -10/Mines | Learned location of Storage (-8) 1462 | -10/Mines | Entered Materials 1462 | -9/Materials | Evolved 2 slots: Propulsion x1, Utility x1 1707 | -9/Materials | Discovered new exit (range 8) 2462 | -9/Materials | Discovered new exit (range 13) 2561 | -9/Materials | Repaired Lgt. Armor Plating 2594 | -9/Materials | Central database locked down 2626 | -9/Materials | Discovered new exit (range 13) 2731 | -9/Materials | Entered Mines 2790 | -9/Mines | Received a Rocket Launcher from a helpful Derelict 2878 | -9/Mines | Deemed a non-threat by the Exiles lab entrance 2878 | -9/Mines | Discovered new exit (range 5) 2925 | -9/Mines | Learned Materials terminal intel 2927 | -9/Mines | Discovered new exit (range 7) 3090 | -9/Mines | Found a hidden stash of uninstalled traps 3108 | -9/Mines | Assembled infested the area 3262 | -9/Mines | Met 8R-AWN 3281 | -9/Mines | Botcube activated 3297 | -9/Mines | Botcube completed mutation into wheeled form, armed with 1 melee weapon. 3303 | -9/Mines | Attacked by 8R-AWN 3330 | -9/Mines | Botcube activated 3338 | -9/Mines | Botcube completed mutation into wheeled form, armed with 1 melee weapon. 3367 | -9/Mines | Allies destroyed 8R-AWN 3477 | -9/Mines | Entered Exiles 3477 | -9/Exiles | Accompanied by 1 ally 3477 | -9/Exiles | Attacked by the Exiles 3548 | -9/Exiles | Found Botcube 3565 | -9/Exiles | Discovered new exit (range 15) 3854 | -9/Exiles | Core integrity fell below 50% 3892 | -9/Exiles | Lost 11 parts (1p2n3u5w) 3934 | -9/Exiles | Learned location of Zion (-6) 4107 | -9/Exiles | Build established: Scavenger-Mutant 4138 | -9/Exiles | Destroyed EX-HEX 5149 | -9/Exiles | Destroyed EX-BIN 5237 | -9/Exiles | Destroyed EX-DEC 5268 | -9/Exiles | Found Prototype Device 5268 | -9/Exiles | Identified System Purifier 5530 | -9/Exiles | Discovered new exit (range 10) 5656 | -9/Exiles | Botcube activated 5672 | -9/Exiles | Botcube completed mutation into legged form, armed with 1 melee weapon. 5688 | -9/Exiles | Found Deploy-a-Sentry 6080 | -9/Exiles | Build established: Hauler-Mutant 6492 | -9/Exiles | Left Exiles lab with Deploy-a-Sentry 6492 | -9/Exiles | Entered Mines 6492 | -8/Mines | Accompanied by 1 ally 6830 | -8/Mines | Found a Scrap Suit stashed away for nefarious purposes 6834 | -8/Mines | Found Scrap Suit 6856 | -8/Mines | Discovered new exit (range 5) 7053 | -8/Mines | Discovered new exit (range 13) 7161 | -8/Mines | Core integrity fell below 20% 7241 | -8/Mines | Central database locked down 7379 | -8/Mines | Entered Materials 7379 | -8/Materials | Accompanied by 1 ally 7379 | -8/Materials | Evolved 2 slots: Propulsion x1, Utility x1 7380 | -8/Materials | Loaded intel: 11 terminal locations 7636 | -8/Materials | Repaired Arm. Wheel 7700 | -8/Materials | Repaired Arm. Wheel 8039 | -8/Materials | Murdered *Pariah 8039 | -8/Materials | Destroyed *Pariah 8472 | -8/Materials | Discovered new exit (range 14) 8619 | -8/Materials | Discovered new exit (range 3) 8795 | -8/Materials | Identified exit to Storage 8886 | -8/Materials | Lost 3 parts (3n) 9146 | -8/Materials | Learned Storage terminal intel 9258 | -8/Materials | Learned Storage security intel 9299 | -8/Materials | Learned 8 Factory zone layouts 9353 | -8/Materials | Learned location of Lower Caves (-6) 9379 | -8/Materials | First assault squad dispatched 9387 | -8/Materials | Identified exit to Factory 9421 | -8/Materials | Learned Factory stockpile data 9433 | -8/Materials | Destroyed 8 combat bots 9519 | -8/Materials | Learned location of 1 exit from Extension 9563 | -8/Materials | Repaired Arm. Treads 9634 | -8/Materials | Entered Storage 9637 | -8/Storage | Loaded intel: 17 terminal locations 10288 | -8/Storage | Discovered new exit (range 9) 10823 | -8/Storage | Lost 4 allies 10897 | -8/Storage | Found Exp. Targeting Computer 11774 | -8/Storage | Used back door to open Recycling access 11828 | -8/Storage | Entered Recycling 11828 | -8/Recycling | Accompanied by 4 allies 12009 | -8/Recycling | Discovered new exit (range 6) 12216 | -8/Recycling | Scanned before Scraplab entrance 12248 | -8/Recycling | Entered Scraplab 12268 | -8/Recycling | Discovered new exit (range 3) 12274 | -8/Recycling | Entered Scraptown 12274 | -8/Scraptown | Accompanied by 4 allies 12395 | -8/Scraptown | Discovered new exit (range 43) 12569 | -8/Scraptown | Turned away by UFD registrar 12945 | -8/Scraptown | Visited Fellowship of the Rings 12995 | -8/Scraptown | Visited Awakened 13066 | -8/Scraptown | Visited IN-MT5's Study 13545 | -8/Scraptown | Visited Cyclists 13558 | -8/Scraptown | Warned about trapping Scraptown 13637 | -8/Scraptown | DAS Turret deployed 13772 | -8/Scraptown | Build established: Sprinter 14094 | -8/Scraptown | Attacked by Scraptown defenders 14112 | -8/Scraptown | Core integrity fell below 50% 14132 | -8/Scraptown | Entered Factory 14132 | -6/Factory | Evolved 4 slots: Power x1, Propulsion x1, Utility x2 14133 | -6/Factory | Identified exit to Lower Caves 14134 | -6/Factory | Identified exit to Factory 14139 | -6/Factory | Lost 4 allies 14152 | -6/Factory | Lost 3 parts (1p1n1u) 14948 | -6/Factory | Build established: Hacker-Sprinter 15000 | -6/Factory | Fabricated IN-MT5's Pitchfork "Insurrection"? 15090 | -6/Factory | Discovered exit to Factory (range 19) 15095 | -6/Factory | Reprogrammed and armed K-01 Serf 15099 | -6/Factory | Reprogrammed and armed K-01 Serf 15099 | -6/Factory | Reprogrammed and armed K-01 Serf 15106 | -6/Factory | Reprogrammed and armed K-01 Serf 15108 | -6/Factory | Reprogrammed and armed K-01 Serf 15108 | -6/Factory | Reprogrammed and armed K-01 Serf 15112 | -6/Factory | Reprogrammed and armed K-01 Serf 15112 | -6/Factory | Reprogrammed and armed K-01 Serf 15146 | -6/Factory | Reprogrammed and armed K-01 Serf 15157 | -6/Factory | Lost 3 allies 15176 | -6/Factory | Reprogrammed and armed K-01 Serf 15177 | -6/Factory | Reprogrammed and armed K-01 Serf 15180 | -6/Factory | Reprogrammed and armed K-01 Serf 15204 | -6/Factory | Reprogrammed and armed K-01 Serf 15249 | -6/Factory | Reprogrammed and armed K-01 Serf 15276 | -6/Factory | Fabricated IN-MT5's Pitchfork "Insurrection"? 15284 | -6/Factory | Reprogrammed and armed K-01 Serf 15284 | -6/Factory | Reprogrammed and armed K-01 Serf 15312 | -6/Factory | Reprogrammed and armed K-01 Serf 15377 | -6/Factory | Reprogrammed and armed K-01 Serf 15399 | -6/Factory | Reprogrammed and armed K-01 Serf 15424 | -6/Factory | Reprogrammed and armed K-01 Serf 15441 | -6/Factory | Reprogrammed and armed K-01 Serf 15469 | -6/Factory | Reprogrammed and armed K-01 Serf 15470 | -6/Factory | Reprogrammed and armed K-01 Serf 15472 | -6/Factory | Reprogrammed and armed K-01 Serf 15476 | -6/Factory | Reprogrammed and armed K-01 Serf 15490 | -6/Factory | Reprogrammed and armed K-01 Serf 15494 | -6/Factory | Cargo convoy interrupted 15515 | -6/Factory | Reprogrammed and armed K-01 Serf 15516 | -6/Factory | Reprogrammed and armed K-01 Serf 15520 | -6/Factory | Reprogrammed and armed K-01 Serf 15522 | -6/Factory | Reprogrammed and armed K-01 Serf 15522 | -6/Factory | Reprogrammed and armed K-01 Serf 15532 | -6/Factory | First assault squad dispatched 15540 | -6/Factory | Reprogrammed and armed K-01 Serf 15558 | -6/Factory | Lost 6 allies 15559 | -6/Factory | Reprogrammed and armed K-01 Serf 15561 | -6/Factory | Reprogrammed and armed K-01 Serf 15561 | -6/Factory | Reprogrammed and armed K-01 Serf 15578 | -6/Factory | Found System Purifier 15588 | -6/Factory | Garrison activated, responded to threat 15602 | -6/Factory | Lost 3 parts (1p1n1u) 15621 | -6/Factory | Reprogrammed and armed K-01 Serf 15626 | -6/Factory | Reprogrammed and armed K-01 Serf 15627 | -6/Factory | Reprogrammed and armed K-01 Serf 15667 | -6/Factory | Reprogrammed and armed K-01 Serf 15669 | -6/Factory | Reprogrammed and armed K-01 Serf 15719 | -6/Factory | Fabricated IN-MT5's Pitchfork "Insurrection"? 15772 | -6/Factory | Fabricated IN-MT5's Pitchfork "Insurrection" (x1) 15813 | -6/Factory | Fabricated IN-MT5's Pitchfork "Insurrection" (x1) 15916 | -6/Factory | High security lockdown imminent 15943 | -6/Factory | Manually triggered Chute Trap 15943 | -6/Factory | Sucked down chute 15943 | -6/Factory | Entered Waste 15945 | -6/Waste | Spotted C-40 Crusher 15949 | -6/Waste | Spotted C-40 Crusher 15956 | -6/Waste | Spotted C-40 Crusher 15958 | -6/Waste | Spotted C-40 Crusher 15964 | -6/Waste | Spotted C-40 Crusher 15965 | -6/Waste | Spotted C-40 Crusher 15971 | -6/Waste | Discovered new exit (range 14) 15975 | -6/Waste | Warlord forces began an assault 16024 | -6/Waste | Allies destroyed C-40 Crusher 16171 | -6/Waste | Allies destroyed C-40 Crusher 16259 | -6/Waste | Entered Factory 16259 | -6/Factory | Accompanied by 15 allies 16289 | -6/Factory | Identified exit to DSF 16299 | -6/Factory | Allied Derelicts emerged from ambush trap array 16309 | -6/Factory | Reprogrammed and armed K-01 Serf 16314 | -6/Factory | Reprogrammed and armed K-01 Serf 16344 | -6/Factory | Reprogrammed and armed K-01 Serf 16347 | -6/Factory | Reprogrammed and armed K-01 Serf 16478 | -6/Factory | Identified exit to Extension 16553 | -6/Factory | Fabricated IN-MT5's Pitchfork "Insurrection"? 16609 | -6/Factory | First assault squad dispatched 16718 | -6/Factory | Entered Extension 16718 | -6/Extension | Accompanied by 17 allies 16719 | -6/Extension | Identified exit to Cetus 16748 | -6/Extension | Warlord forces began an assault 16749 | -6/Extension | Reprogrammed and armed K-01 Serf 16821 | -6/Extension | Spotted B-75 Beast 16858 | -6/Extension | Spotted B-75 Beast 16863 | -6/Extension | Allies destroyed B-75 Beast 16868 | -6/Extension | Discovered exit to Factory (range 3) 16884 | -6/Extension | Rescued a captive Derelict 16885 | -6/Extension | Rescued a captive Derelict 16893 | -6/Extension | Energy Cycler disabled 16893 | -6/Extension | Rescued a captive Derelict 16893 | -6/Extension | Rescued a captive Derelict 16893 | -6/Extension | Rescued a captive Derelict 16893 | -6/Extension | Rescued a captive Derelict 16893 | -6/Extension | Rescued a captive Derelict 16893 | -6/Extension | Rescued a captive Derelict 16893 | -6/Extension | Rescued a captive Derelict 16895 | -6/Extension | Rescued a captive Derelict 16896 | -6/Extension | Rescued a captive Derelict 16896 | -6/Extension | Rescued a captive Derelict 16898 | -6/Extension | Rescued a captive Derelict 16898 | -6/Extension | Rescued a captive Derelict 16903 | -6/Extension | Rescued a captive Derelict 16907 | -6/Extension | Rescued a captive Derelict 16979 | -6/Extension | Rescued A7 17114 | -6/Extension | Reprogrammed and armed K-01 Serf 17115 | -6/Extension | Reprogrammed and armed K-01 Serf 17117 | -6/Extension | Reprogrammed and armed K-01 Serf 17123 | -6/Extension | Discovered exit to Factory (range 16) 17222 | -6/Extension | Entered Cetus 17222 | -6/Cetus | Accompanied by 25 allies (A7) 17227 | -6/Cetus | Acquired a Cetus Manufacturing Module code from A7 17227 | -6/Cetus | Spotted Cetus Guard 17236 | -6/Cetus | Spotted Cetus Guard 17238 | -6/Cetus | Spotted Cetus Guard 17238 | -6/Cetus | Allies destroyed Cetus Guard 17242 | -6/Cetus | Allies destroyed Cetus Guard 17243 | -6/Cetus | Spotted Cetus Guard 17247 | -6/Cetus | Allies destroyed Cetus Guard 17250 | -6/Cetus | Allies destroyed Cetus Guard 17277 | -6/Cetus | Started Cetus Manufacturing Module 17302 | -6/Cetus | Manufactured an Enhanced Grunt 17316 | -6/Cetus | Escorted A7 to Cetus Mainframe 17327 | -6/Cetus | Manufactured an Enhanced Grunt 17352 | -6/Cetus | Manufactured an Enhanced Grunt 17368 | -6/Cetus | Discovered new exit (range 15) 17377 | -6/Cetus | Manufactured an Enhanced Grunt 17402 | -6/Cetus | Manufactured an Enhanced Grunt 17436 | -6/Cetus | Spotted Cetus Guard 17436 | -6/Cetus | Spotted Cetus Guard 17450 | -6/Cetus | Spotted Cetus Guard 17457 | -6/Cetus | Allies destroyed Cetus Guard 17467 | -6/Cetus | Allies destroyed Cetus Guard 17471 | -6/Cetus | Discovered exit to Factory (range 16) 17473 | -6/Cetus | Met Revision 17 17527 | -6/Cetus | Murdered Revision 17 17588 | -6/Cetus | Attached CPS modules to A7. 17822 | -6/Cetus | Build established: Commander-Sprinter 17972 | -6/Cetus | Security sweep announced 17989 | -6/Cetus | Murdered A7 17990 | -6/Cetus | Extracted ID and sensor layout for unrecognized location from A7's data core 18002 | -6/Cetus | Found Med. Regenerative Plating 18007 | -6/Cetus | Cetus Manufacturing Module disabled 18052 | -6/Cetus | Identified exit to Archives 18207 | -6/Cetus | Entered Archives 18207 | -6/Archives | Accompanied by 22 allies 18286 | -6/Archives | Discovered new exit (range 15) 18304 | -6/Archives | Discovered new exit (range 14) 18386 | -6/Archives | Discovered exit to Factory (range 15) 18698 | -6/Archives | Identified exit to Hub_04(d) 18902 | -6/Archives | Build established: Commander-Mutant 21683 | -6/Archives | Entered Hub_04(d) 21683 | -6/Hub_04(d) | Accompanied by 19 allies 21714 | -6/Hub_04(d) | Reprogrammed and armed K-01 Serf 21714 | -6/Hub_04(d) | Reprogrammed and armed K-01 Serf 21766 | -6/Hub_04(d) | Discovered exit to Factory (range 7) 21802 | -6/Hub_04(d) | Reprogrammed and armed K-01 Serf 21806 | -6/Hub_04(d) | Reprogrammed and armed K-01 Serf 21811 | -6/Hub_04(d) | Garrison activated, responded to threat 21826 | -6/Hub_04(d) | Reprogrammed and armed K-01 Serf 21833 | -6/Hub_04(d) | Reprogrammed and armed K-01 Serf 21834 | -6/Hub_04(d) | Unchained authorized (BL-1NK) 21836 | -6/Hub_04(d) | Reprogrammed and armed K-01 Serf 21857 | -6/Hub_04(d) | Reprogrammed and armed K-01 Serf 21857 | -6/Hub_04(d) | Reprogrammed and armed K-01 Serf 21876 | -6/Hub_04(d) | Reprogrammed and armed K-01 Serf 21884 | -6/Hub_04(d) | Lost 6 allies 21897 | -6/Hub_04(d) | Reprogrammed and armed K-01 Serf 21903 | -6/Hub_04(d) | Reprogrammed and armed K-01 Serf 21903 | -6/Hub_04(d) | Reprogrammed and armed K-01 Serf 21906 | -6/Hub_04(d) | Reprogrammed and armed K-01 Serf 21917 | -6/Hub_04(d) | Reprogrammed and armed K-01 Serf 21921 | -6/Hub_04(d) | Reprogrammed and armed K-01 Serf 21923 | -6/Hub_04(d) | Discovered exit to Factory (range 15) 21936 | -6/Hub_04(d) | Reprogrammed and armed K-01 Serf 21939 | -6/Hub_04(d) | Reprogrammed and armed K-01 Serf 21939 | -6/Hub_04(d) | Reprogrammed and armed K-01 Serf 21956 | -6/Hub_04(d) | Attached CPS modules to BL-1NK. 21957 | -6/Hub_04(d) | Allies destroyed BL-1NK 22033 | -6/Hub_04(d) | First assault squad dispatched 22106 | -6/Hub_04(d) | Discovered exit to Factory (range 9) 22118 | -6/Hub_04(d) | Reprogrammed and armed K-01 Serf 22129 | -6/Hub_04(d) | Reprogrammed and armed K-01 Serf 22186 | -6/Hub_04(d) | Reprogrammed and armed K-01 Serf 22334 | -6/Hub_04(d) | Reprogrammed and armed K-01 Serf 22423 | -6/Hub_04(d) | Network Hub disabled 22423 | -6/Hub_04(d) | Network Hub disabled 22570 | -6/Hub_04(d) | Build established: Hacker-Sprinter 22626 | -6/Hub_04(d) | Spotted Lightning 22631 | -6/Hub_04(d) | Spotted Lightning 22639 | -6/Hub_04(d) | Spotted Lightning 22641 | -6/Hub_04(d) | Network Hub disabled 22649 | -6/Hub_04(d) | Reprogrammed and armed K-01 Serf 22650 | -6/Hub_04(d) | Reprogrammed and armed K-01 Serf 22651 | -6/Hub_04(d) | Found Prototype Device 22654 | -6/Hub_04(d) | Identified Exp. EM Shield 22673 | -6/Hub_04(d) | Lost 7 allies 22701 | -6/Hub_04(d) | Network Hub disabled 22717 | -6/Hub_04(d) | Entered Factory 22717 | -5/Factory | Evolved 2 slots: Utility x2 22727 | -5/Factory | Reprogrammed and armed K-01 Serf 22781 | -5/Factory | Reprogrammed and armed K-01 Serf 22792 | -5/Factory | Reprogrammed and armed K-01 Serf 22793 | -5/Factory | Reprogrammed and armed K-01 Serf 22805 | -5/Factory | Reprogrammed and armed K-01 Serf 22815 | -5/Factory | Unchained authorized (GL-D0S) 22876 | -5/Factory | Reprogrammed and armed K-01 Serf 22993 | -5/Factory | Reprogrammed and armed K-01 Serf 23017 | -5/Factory | First assault squad dispatched 23049 | -5/Factory | Reprogrammed and armed K-01 Serf 23097 | -5/Factory | Fabricated IN-MT5's Pitchfork "Insurrection" (x1) 23104 | -5/Factory | Reprogrammed and armed K-01 Serf 23105 | -5/Factory | Discovered new exit (range 15) 23124 | -5/Factory | Identified exit to Factory 23176 | -5/Factory | Fabricated CPS Tube? 23203 | -5/Factory | Lost 3 allies 23214 | -5/Factory | Reprogrammed and armed K-01 Serf 23232 | -5/Factory | Reprogrammed and armed K-01 Serf 23233 | -5/Factory | Reprogrammed and armed K-01 Serf 23235 | -5/Factory | Reprogrammed and armed K-01 Serf 23237 | -5/Factory | Reprogrammed and armed K-01 Serf 23237 | -5/Factory | Reprogrammed and armed K-01 Serf 23247 | -5/Factory | Reprogrammed and armed K-01 Serf 23249 | -5/Factory | Reprogrammed and armed K-01 Serf 23250 | -5/Factory | Reprogrammed and armed K-01 Serf 23250 | -5/Factory | Reprogrammed and armed K-01 Serf 23276 | -5/Factory | Reprogrammed and armed K-01 Serf 23280 | -5/Factory | Reprogrammed and armed K-01 Serf 23316 | -5/Factory | Fabricated IN-MT5's Pitchfork "Insurrection"? 23329 | -5/Factory | Reprogrammed and armed K-01 Serf 23410 | -5/Factory | Reprogrammed and armed K-01 Serf 23414 | -5/Factory | Reprogrammed and armed K-01 Serf 23505 | -5/Factory | Reprogrammed and armed K-01 Serf 23511 | -5/Factory | Cargo convoy interrupted 23521 | -5/Factory | Reprogrammed and armed K-01 Serf 23580 | -5/Factory | Lost 5 allies 23706 | -5/Factory | Reprogrammed and armed K-01 Serf 23708 | -5/Factory | Reprogrammed and armed K-01 Serf 23709 | -5/Factory | Reprogrammed and armed K-01 Serf 23711 | -5/Factory | Reprogrammed and armed K-01 Serf 23768 | -5/Factory | Reprogrammed and armed K-01 Serf 23779 | -5/Factory | Fabricated IN-MT5's Pitchfork "Insurrection"? 23887 | -5/Factory | Reprogrammed and armed K-01 Serf 23963 | -5/Factory | Lost 4 allies 24063 | -5/Factory | Discovered exit to Factory (range 5) 24079 | -5/Factory | Identified exit to Upper Caves 24133 | -5/Factory | Lost 3 parts (1p1n1u) 24137 | -5/Factory | Reprogrammed and armed K-01 Serf 24174 | -5/Factory | Reprogrammed and armed K-01 Serf 24198 | -5/Factory | Reprogrammed and armed K-01 Serf 24200 | -5/Factory | Reprogrammed and armed K-01 Serf 24205 | -5/Factory | Reprogrammed and armed K-01 Serf 24296 | -5/Factory | Lost 3 allies 24400 | -5/Factory | Reprogrammed and armed K-01 Serf 24434 | -5/Factory | Core integrity fell below 50% 24447 | -5/Factory | Entered Upper Caves 24464 | -5/Upper Caves | Lost 5 parts (1p2n1u1w) 24479 | -5/Upper Caves | Spotted B-75 Beast 24505 | -5/Upper Caves | Learned Factory garrison access intel 25067 | -5/Upper Caves | Discovered new exit (range 7) 25082 | -5/Upper Caves | Identified exit to Upper Caves 25087 | -5/Upper Caves | Entered another Upper Caves area 25091 | -5/Upper Caves | Spotted B-75 Beast 25119 | -5/Upper Caves | Build established: Scavenger-Scout 25170 | -5/Upper Caves | Learned Factory trap positions 25173 | -5/Upper Caves | Encountered a Warlord checkpoint 25204 | -5/Upper Caves | Encountered a Master Thief 25205 | -5/Upper Caves | Encountered a Master Thief 25205 | -5/Upper Caves | Exp. EM Shield stolen by Master Thief 25209 | -5/Upper Caves | Encountered a Master Thief 25211 | -5/Upper Caves | Imp. Diametric Drive stolen by Master Thief 25219 | -5/Upper Caves | Discovered new exit (range 11) 25269 | -5/Upper Caves | Identified exit to Zhirov 25332 | -5/Upper Caves | 1C-UTU showed up to help 25339 | -5/Upper Caves | 1C-UTU revealed a hidden path 25353 | -5/Upper Caves | Attached CPS modules to 1C-UTU. 25363 | -5/Upper Caves | Murdered 1C-UTU 25367 | -5/Upper Caves | Found Prototype Protection 25367 | -5/Upper Caves | Identified 1C-UTU's Buckler 25377 | -5/Upper Caves | Found Prototype Slashing Weapon 25377 | -5/Upper Caves | Identified 1C-UTU's Sword "Choppy" 25379 | -5/Upper Caves | Found Prototype Device 25379 | -5/Upper Caves | Identified Femtoactuators 25388 | -5/Upper Caves | Found Prototype Processor 25390 | -5/Upper Caves | Found Prototype Device 25391 | -5/Upper Caves | Identified Exp. Actuator Array 25503 | -5/Upper Caves | Entered Zhirov 25503 | -5/Zhirov | Discovered new exit (range 3) 25505 | -5/Zhirov | Identified exit to Proximity Caves 25520 | -5/Zhirov | Met Zhirov 25542 | -5/Zhirov | Learned location of Quarantine (-2) 25542 | -5/Zhirov | Learned location of Testing (-3) 25542 | -5/Zhirov | Learned location of Command (-1) 25550 | -5/Zhirov | Zhirov requested help retrieving the SGEMP Prototype 25565 | -5/Zhirov | Found Alien Artifact 25565 | -5/Zhirov | Identified Integrated Dissipator 25565 | -5/Zhirov | Installed Integrated Dissipator, increased core heat dissipation (+20) 25616 | -5/Zhirov | Found Alien Artifact 25624 | -5/Zhirov | Build established: Scavenger-Mutant 25672 | -5/Zhirov | Entered Proximity Caves 25857 | -4/Proximity Caves | Spotter reported a threat 25872 | -4/Proximity Caves | Learned Research security intel 26187 | -4/Proximity Caves | Build established: Scavenger-Gladiator 26798 | -4/Proximity Caves | System corruption reached 10% 26810 | -4/Proximity Caves | Entered Factory 26810 | -4/Factory | Evolved 2 slots: Propulsion x1, Utility x1 26811 | -4/Factory | Loaded intel: 77 trap records 26812 | -4/Factory | Loaded intel: 4 garrison access locations 26891 | -4/Factory | Unchained authorized (GL-D0S) 26891 | -4/Factory | Reprogrammed and armed K-01 Serf 26919 | -4/Factory | Reprogrammed and armed K-01 Serf 26920 | -4/Factory | Reprogrammed and armed K-01 Serf 26925 | -4/Factory | Reprogrammed and armed K-01 Serf 26927 | -4/Factory | Reprogrammed and armed K-01 Serf 26936 | -4/Factory | Reprogrammed and armed K-01 Serf 26966 | -4/Factory | Reprogrammed and armed K-01 Serf 26982 | -4/Factory | Reprogrammed and armed K-01 Serf 27011 | -4/Factory | Discovered new exit (range 16) 27020 | -4/Factory | Reprogrammed and armed K-01 Serf 27021 | -4/Factory | Destroyed GL-D0S 27039 | -4/Factory | Reprogrammed and armed K-01 Serf 27044 | -4/Factory | Reprogrammed and armed K-01 Serf 27054 | -4/Factory | Sucked down chute 27054 | -4/Factory | Entered Waste 27054 | -4/Waste | The area was eerily silent 27066 | -4/Waste | Lost 11 parts (2p5n3u1w) 27083 | -4/Waste | Lost 4 allies 27313 | -4/Waste | Build established: Scavenger-Mutant 27500 | -4/Waste | Discovered new exit (range 14) 27851 | -4/Waste | Entered Factory 27975 | -4/Factory | Reprogrammed and armed K-01 Serf 27985 | -4/Factory | Reprogrammed and armed K-01 Serf 28010 | -4/Factory | Reprogrammed and armed K-01 Serf 28013 | -4/Factory | Reprogrammed and armed K-01 Serf 28024 | -4/Factory | Reprogrammed and armed K-01 Serf 28031 | -4/Factory | Spotted B-86 Titan 28051 | -4/Factory | Reprogrammed and armed K-01 Serf 28053 | -4/Factory | Reprogrammed and armed K-01 Serf 28066 | -4/Factory | Reprogrammed and armed K-01 Serf 28077 | -4/Factory | Discovered new exit (range 41) 28085 | -4/Factory | Lost 7 allies 28094 | -4/Factory | Allies destroyed B-86 Titan 28144 | -4/Factory | Reprogrammed and armed K-01 Serf 28148 | -4/Factory | Reprogrammed and armed K-01 Serf 28152 | -4/Factory | Reprogrammed and armed K-01 Serf 28153 | -4/Factory | Destroyed 7 combat bots 28160 | -4/Factory | Reprogrammed and armed K-01 Serf 28163 | -4/Factory | Reprogrammed and armed K-01 Serf 28199 | -4/Factory | Identified Exp. Melee Analysis Suite 28226 | -4/Factory | Reprogrammed and armed K-01 Serf 28231 | -4/Factory | Identified exit to Upper Caves 28239 | -4/Factory | Reprogrammed and armed K-01 Serf 28245 | -4/Factory | Reprogrammed and armed K-01 Serf 28251 | -4/Factory | Reprogrammed and armed K-01 Serf 28279 | -4/Factory | Reprogrammed and armed K-01 Serf 28279 | -4/Factory | Reprogrammed and armed K-01 Serf 28280 | -4/Factory | Reprogrammed and armed K-01 Serf 28281 | -4/Factory | Reprogrammed and armed K-01 Serf 28283 | -4/Factory | Reprogrammed and armed K-01 Serf 28317 | -4/Factory | Identified exit to Research 28333 | -4/Factory | Reprogrammed and armed K-01 Serf 28396 | -4/Factory | P-70 Sage assimilated allied K-01 Serf 28402 | -4/Factory | P-70 Sage assimilated allied K-01 Serf 28405 | -4/Factory | Garrison activated, responded to threat 28408 | -4/Factory | Reprogrammed and armed K-01 Serf 28414 | -4/Factory | Reprogrammed and armed K-01 Serf 28444 | -4/Factory | Identified exit to Garrison 28502 | -4/Factory | Reprogrammed and armed K-01 Serf 28516 | -4/Factory | Found Prototype Processor 28516 | -4/Factory | Identified Exp. Signal Interpreter 28579 | -4/Factory | Fabricated IN-MT5's Pitchfork "Insurrection"? 28591 | -4/Factory | Reprogrammed and armed K-01 Serf 28594 | -4/Factory | Reprogrammed and armed K-01 Serf 28636 | -4/Factory | Reprogrammed and armed K-01 Serf 28664 | -4/Factory | Reprogrammed and armed K-01 Serf 28670 | -4/Factory | Build established: Scavenger-Scout 28674 | -4/Factory | Lost 3 allies 28701 | -4/Factory | Reprogrammed and armed K-01 Serf 28705 | -4/Factory | Reprogrammed and armed K-01 Serf 28706 | -4/Factory | Reprogrammed and armed K-01 Serf 28710 | -4/Factory | Reprogrammed and armed K-01 Serf 28732 | -4/Factory | Reprogrammed and armed K-01 Serf 28773 | -4/Factory | Reprogrammed and armed K-01 Serf 28865 | -4/Factory | Reprogrammed and armed K-01 Serf 28866 | -4/Factory | Reprogrammed and armed K-01 Serf 28867 | -4/Factory | Reprogrammed and armed K-01 Serf 28914 | -4/Factory | Lost 4 allies 28936 | -4/Factory | Discovered exit to Research (range 11) 28940 | -4/Factory | Reprogrammed and armed K-01 Serf 28945 | -4/Factory | Reprogrammed and armed K-01 Serf 29055 | -4/Factory | Fabricated IN-MT5's Pitchfork "Insurrection"? 29091 | -4/Factory | Spotted B-86 Titan 29103 | -4/Factory | Destroyed B-86 Titan 29180 | -4/Factory | Reprogrammed and armed K-01 Serf 29206 | -4/Factory | Reprogrammed and armed K-01 Serf 29328 | -4/Factory | Reprogrammed and armed K-01 Serf 29330 | -4/Factory | Reprogrammed and armed K-01 Serf 29362 | -4/Factory | Garrison activated, responded to threat 29477 | -4/Factory | Build established: Hacker-Ninja 29516 | -4/Factory | Reprogrammed and armed K-01 Serf 29517 | -4/Factory | Reprogrammed and armed K-01 Serf 29552 | -4/Factory | Reprogrammed and armed K-01 Serf 29579 | -4/Factory | Identified Transdimensional Reconstructor 29593 | -4/Factory | Reprogrammed and armed K-01 Serf 29595 | -4/Factory | Reprogrammed and armed K-01 Serf 29596 | -4/Factory | Reprogrammed and armed K-01 Serf 29601 | -4/Factory | First assault squad dispatched 29607 | -4/Factory | Reprogrammed and armed K-01 Serf 29629 | -4/Factory | Reprogrammed and armed K-01 Serf 29630 | -4/Factory | Reprogrammed and armed K-01 Serf 29711 | -4/Factory | Reprogrammed and armed K-01 Serf 29723 | -4/Factory | High security lockdown imminent 29727 | -4/Factory | Reprogrammed and armed K-01 Serf 29729 | -4/Factory | Reprogrammed and armed K-01 Serf 29778 | -4/Factory | Reprogrammed and armed K-01 Serf 29783 | -4/Factory | Reprogrammed and armed K-01 Serf 29803 | -4/Factory | High security lockdown engaged 29856 | -4/Factory | Reprogrammed and armed K-01 Serf 29883 | -4/Factory | Garrison activated, responded to threat 29901 | -4/Factory | Entered Garrison 29901 | -4/Garrison | Accompanied by 9 allies 29909 | -4/Garrison | Lost 3 allies 29923 | -4/Garrison | Found Relay Coupler [Proto] 29991 | -4/Garrison | P-70 Sage assimilated allied K-01 Serf 29999 | -4/Garrison | Reprogrammed and armed K-01 Serf 30003 | -4/Garrison | Spotted B-86 Titan 30045 | -4/Garrison | Lost 7 allies 30103 | -4/Garrison | Triggered checkpoint 30103 | -4/Garrison | Triggered checkpoint 30105 | -4/Garrison | Discovered exit to Research (range 22) 30105 | -4/Garrison | Discovered exit to Research (range 47) 30105 | -4/Garrison | Discovered exit to Research (range 51) 30236 | -4/Garrison | Lost 4 allies 30285 | -4/Garrison | Triggered checkpoint 30306 | -4/Garrison | Installed Relay Interface Framework 30325 | -4/Garrison | Garrison Relay disabled 30342 | -4/Garrison | Build established: Scavenger-Sprinter 30343 | -4/Garrison | Triggered checkpoint 30359 | -4/Garrison | Triggered checkpoint 30366 | -4/Garrison | Garrison Relay disabled 30415 | -4/Garrison | Entered Research 30415 | -3/Research | Accompanied by 5 allies 30415 | -3/Research | Evolved 2 slots: Propulsion x1, Utility x1 30424 | -3/Research | Identified exit to Armory 30424 | -3/Research | Identified exit to Testing 30427 | -3/Research | Reprogrammed and armed K-01 Serf 30442 | -3/Research | Reprogrammed and armed K-01 Serf 30444 | -3/Research | Reprogrammed and armed K-01 Serf 30445 | -3/Research | Reprogrammed and armed K-01 Serf 30534 | -3/Research | Reprogrammed and armed K-01 Serf 30537 | -3/Research | Reprogrammed and armed K-01 Serf 30537 | -3/Research | Reprogrammed and armed K-01 Serf 30564 | -3/Research | Reprogrammed and armed K-01 Serf 30581 | -3/Research | Reprogrammed and armed K-01 Serf 30593 | -3/Research | Reprogrammed and armed K-01 Serf 30595 | -3/Research | Discovered new exit (range 5) 30595 | -3/Research | Identified exit to Research 30597 | -3/Research | Reprogrammed and armed K-01 Serf 30662 | -3/Research | Reprogrammed and armed K-01 Serf 30665 | -3/Research | First assault squad dispatched 30671 | -3/Research | Lost 3 allies 30698 | -3/Research | Found Prototype Device 30698 | -3/Research | Identified Exp. Shield Generator 30708 | -3/Research | Central database locked down 30732 | -3/Research | Entered Armory 30732 | -3/Armory | Accompanied by 9 allies 30805 | -3/Armory | Reprogrammed and armed K-01 Serf 30943 | -3/Armory | Fabricated IN-MT5's Pitchfork "Insurrection"? 30971 | -3/Armory | Build established: Scavenger-Ninja 30982 | -3/Armory | First assault squad dispatched 30992 | -3/Armory | Spotted B-86 Titan 31110 | -3/Armory | Found Spectral Analyzer 31250 | -3/Armory | Destroyed Armor Guard 31296 | -3/Armory | Discovered new exit (range 7) 31297 | -3/Armory | Identified exit to Lab 31312 | -3/Armory | Entered Lab 31312 | -3/Lab | Discovered exit to Research (range 9) 31319 | -3/Lab | Hidden lab's door opened automatically 31319 | -3/Lab | Sensor layout match revealed 31320 | -3/Lab | Gained access to the hidden lab's interior 31327 | -3/Lab | Found Alien Artifact 31331 | -3/Lab | Found Alien Artifact 31335 | -3/Lab | Found Transdimensional Reconstructor 31342 | -3/Lab | Identified Integrated Mediator 31342 | -3/Lab | Installed Integrated Mediator, increased core attachment efficiency 31345 | -3/Lab | Found Prototype Special Weapon 31354 | -3/Lab | Unable to decrypt terminal 31361 | -3/Lab | Found Prototype Protection 31363 | -3/Lab | Found Deep Network Scanner 31390 | -3/Lab | Found Prototype Energy Gun 31401 | -3/Lab | Found Prototype Energy Cannon 31437 | -3/Lab | Entered Research 31437 | -2/Research | Evolved 2 slots: Utility x1, Weapon x1 31459 | -2/Research | Reprogrammed and armed K-01 Serf 31463 | -2/Research | Reprogrammed and armed K-01 Serf 31470 | -2/Research | Identified Exp. Powered Armor 31482 | -2/Research | Identified Potential Cannon 31500 | -2/Research | Discovered new exit (range 7) 31501 | -2/Research | Identified exit to Access 31514 | -2/Research | Reprogrammed and armed K-01 Serf 31530 | -2/Research | Reprogrammed and armed K-01 Serf 31540 | -2/Research | Spotted B-90 Cyclops 31551 | -2/Research | Reprogrammed and armed K-01 Serf 31552 | -2/Research | Reprogrammed and armed K-01 Serf 31553 | -2/Research | Reprogrammed and armed K-01 Serf 31575 | -2/Research | Allies destroyed B-90 Cyclops 31632 | -2/Research | Fabricated CPS Tube (x1) 31678 | -2/Research | Reprogrammed and armed K-01 Serf 31680 | -2/Research | Reprogrammed and armed K-01 Serf 31680 | -2/Research | Reprogrammed and armed K-01 Serf 31681 | -2/Research | Reprogrammed and armed K-01 Serf 31682 | -2/Research | Reprogrammed and armed K-01 Serf 31698 | -2/Research | Fabricated IN-MT5's Pitchfork "Insurrection"? 31703 | -2/Research | Reprogrammed and armed K-01 Serf 31714 | -2/Research | Reprogrammed and armed K-01 Serf 31717 | -2/Research | Lost 6 allies 31763 | -2/Research | Fabricated IN-MT5's Pitchfork "Insurrection" (x1) 31789 | -2/Research | Reprogrammed and armed K-01 Serf 31798 | -2/Research | Lost 3 allies 31806 | -2/Research | Found Adv. Force Booster 31832 | -2/Research | Reprogrammed and armed K-01 Serf 31881 | -2/Research | Lost 5 allies 31938 | -2/Research | Reprogrammed and armed K-01 Serf 31944 | -2/Research | Reprogrammed and armed K-01 Serf 31954 | -2/Research | Identified exit to Quarantine 32005 | -2/Research | Reprogrammed and armed K-01 Serf 32005 | -2/Research | Reprogrammed and armed K-01 Serf 32006 | -2/Research | Reprogrammed and armed K-01 Serf 32029 | -2/Research | Reprogrammed and armed K-01 Serf 32058 | -2/Research | Reprogrammed and armed K-01 Serf 32073 | -2/Research | Lost 3 allies 32097 | -2/Research | Identified Core Regenerator 32113 | -2/Research | Reprogrammed and armed K-01 Serf 32123 | -2/Research | Reprogrammed and armed K-01 Serf 32133 | -2/Research | Reprogrammed and armed K-01 Serf 32134 | -2/Research | Reprogrammed and armed K-01 Serf 32171 | -2/Research | Reprogrammed and armed K-01 Serf 32181 | -2/Research | Spotted B-90 Cyclops 32208 | -2/Research | Build established: Hacker-Ninja 32241 | -2/Research | Fabricated IN-MT5's Pitchfork "Insurrection"? 32288 | -2/Research | Allies destroyed B-90 Cyclops 32364 | -2/Research | P-80 Master assimilated allied K-01 Serf 32377 | -2/Research | Reprogrammed and armed K-01 Serf 32481 | -2/Research | P-80 Master assimilated allied K-01 Serf 32491 | -2/Research | Reprogrammed and armed K-01 Serf 32493 | -2/Research | Reprogrammed and armed K-01 Serf 32654 | -2/Research | Reprogrammed and armed K-01 Serf 32659 | -2/Research | Reprogrammed and armed K-01 Serf 32691 | -2/Research | Entered Quarantine 32691 | -2/Quarantine | Accompanied by 7 allies 32779 | -2/Quarantine | Reprogrammed and armed K-01 Serf 32783 | -2/Quarantine | Reprogrammed and armed K-01 Serf 32814 | -2/Quarantine | Reprogrammed and armed K-01 Serf 32823 | -2/Quarantine | Reprogrammed and armed K-01 Serf 32840 | -2/Quarantine | Reprogrammed and armed K-01 Serf 32849 | -2/Quarantine | Reprogrammed and armed K-01 Serf 32861 | -2/Quarantine | Discovered exit to Access (range 5) 32862 | -2/Quarantine | Reprogrammed and armed K-01 Serf 32862 | -2/Quarantine | Reprogrammed and armed K-01 Serf 32867 | -2/Quarantine | Reprogrammed and armed K-01 Serf 32874 | -2/Quarantine | Reprogrammed and armed K-01 Serf 32875 | -2/Quarantine | Reprogrammed and armed K-01 Serf 32878 | -2/Quarantine | Reprogrammed and armed K-01 Serf 32885 | -2/Quarantine | Found Exp. Melee Analysis Suite 32898 | -2/Quarantine | Reprogrammed and armed K-01 Serf 32899 | -2/Quarantine | Reprogrammed and armed K-01 Serf 32899 | -2/Quarantine | Reprogrammed and armed K-01 Serf 32900 | -2/Quarantine | Reprogrammed and armed K-01 Serf 32900 | -2/Quarantine | Reprogrammed and armed K-01 Serf 32912 | -2/Quarantine | Reprogrammed and armed K-01 Serf 32913 | -2/Quarantine | Reprogrammed and armed K-01 Serf 32914 | -2/Quarantine | Reprogrammed and armed K-01 Serf 32914 | -2/Quarantine | Reprogrammed and armed K-01 Serf 32915 | -2/Quarantine | Reprogrammed and armed K-01 Serf 32915 | -2/Quarantine | Reprogrammed and armed K-01 Serf 32917 | -2/Quarantine | Spotted Alpha 7 32924 | -2/Quarantine | Allies destroyed Alpha 7 32925 | -2/Quarantine | Found Prototype Ballistic Gun 32925 | -2/Quarantine | Identified Multirail 32930 | -2/Quarantine | Found Prototype Device 32930 | -2/Quarantine | Identified Exp. ECM Suite 32937 | -2/Quarantine | Reprogrammed and armed K-01 Serf 32938 | -2/Quarantine | Reprogrammed and armed K-01 Serf 32938 | -2/Quarantine | Reprogrammed and armed K-01 Serf 32938 | -2/Quarantine | Reprogrammed and armed K-01 Serf 32940 | -2/Quarantine | Reprogrammed and armed K-01 Serf 32941 | -2/Quarantine | Reprogrammed and armed K-01 Serf 32979 | -2/Quarantine | Found Alien Artifact 32995 | -2/Quarantine | Reprogrammed and armed K-01 Serf 33022 | -2/Quarantine | Reprogrammed and armed K-01 Serf 33023 | -2/Quarantine | Reprogrammed and armed K-01 Serf 33025 | -2/Quarantine | Reprogrammed and armed K-01 Serf 33025 | -2/Quarantine | Reprogrammed and armed K-01 Serf 33025 | -2/Quarantine | Reprogrammed and armed K-01 Serf 33025 | -2/Quarantine | Reprogrammed and armed K-01 Serf 33025 | -2/Quarantine | Reprogrammed and armed K-01 Serf 33026 | -2/Quarantine | Reprogrammed and armed K-01 Serf 33027 | -2/Quarantine | Reprogrammed and armed K-01 Serf 33108 | -2/Quarantine | Reprogrammed and armed K-01 Serf 33108 | -2/Quarantine | Reprogrammed and armed K-01 Serf 33108 | -2/Quarantine | Reprogrammed and armed K-01 Serf 33109 | -2/Quarantine | Reprogrammed and armed K-01 Serf 33111 | -2/Quarantine | Reprogrammed and armed K-01 Serf 33113 | -2/Quarantine | Reprogrammed and armed K-01 Serf 33116 | -2/Quarantine | Reprogrammed and armed K-01 Serf 33121 | -2/Quarantine | Reprogrammed and armed K-01 Serf 33121 | -2/Quarantine | Reprogrammed and armed K-01 Serf 33122 | -2/Quarantine | Reprogrammed and armed K-01 Serf 33122 | -2/Quarantine | Reprogrammed and armed K-01 Serf 33123 | -2/Quarantine | Reprogrammed and armed K-01 Serf 33123 | -2/Quarantine | Reprogrammed and armed K-01 Serf 33123 | -2/Quarantine | Reprogrammed and armed K-01 Serf 33144 | -2/Quarantine | Reprogrammed and armed K-01 Serf 33152 | -2/Quarantine | Found Alien Launcher 33156 | -2/Quarantine | Reprogrammed and armed K-01 Serf 33156 | -2/Quarantine | Reprogrammed and armed K-01 Serf 33156 | -2/Quarantine | Reprogrammed and armed K-01 Serf 33156 | -2/Quarantine | Reprogrammed and armed K-01 Serf 33157 | -2/Quarantine | Reprogrammed and armed K-01 Serf 33191 | -2/Quarantine | First assault squad dispatched 33210 | -2/Quarantine | Spotted Fortress 33225 | -2/Quarantine | Allies destroyed Fortress 33227 | -2/Quarantine | Found Prototype Reactor 33227 | -2/Quarantine | Identified Vortex Chain Reactor 33231 | -2/Quarantine | Found Vortex Chain Reactor 33272 | -2/Quarantine | Discovered new exit (range 6) 33272 | -2/Quarantine | Discovered new exit (range 6) 33273 | -2/Quarantine | Identified exit to Protoforge 33273 | -2/Quarantine | Identified exit to Section 7 33473 | -2/Quarantine | Entered Protoforge 33473 | -2/Protoforge | Accompanied by 47 allies 33488 | -2/Protoforge | Reprogrammed and armed K-01 Serf 33503 | -2/Protoforge | Superfortress began startup sequence 33508 | -2/Protoforge | Spotted Hotshot 33508 | -2/Protoforge | Spotted Hotshot 33508 | -2/Protoforge | Spotted Hotshot 33508 | -2/Protoforge | Spotted Hotshot 33542 | -2/Protoforge | Allies destroyed Hotshot 33627 | -2/Protoforge | Spotted B-90 Cyclops 33634 | -2/Protoforge | Reprogrammed and armed K-01 Serf 33641 | -2/Protoforge | Reprogrammed and armed K-01 Serf 33653 | -2/Protoforge | Allies destroyed B-90 Cyclops 33669 | -2/Protoforge | Reprogrammed and armed K-01 Serf 33709 | -2/Protoforge | Spotted Hotshot 33710 | -2/Protoforge | Spotted Hotshot 33710 | -2/Protoforge | Spotted Overlord 33710 | -2/Protoforge | Spotted Hotshot 33711 | -2/Protoforge | Spotted Hotshot 33723 | -2/Protoforge | First assault squad dispatched 33730 | -2/Protoforge | Allies destroyed Hotshot 33734 | -2/Protoforge | Allies destroyed Hotshot 33752 | -2/Protoforge | Allies destroyed Hotshot 33756 | -2/Protoforge | Spotted AP7-3 33758 | -2/Protoforge | Allies destroyed Hotshot 33759 | -2/Protoforge | Allies destroyed Overlord 33763 | -2/Protoforge | Spotted AP7-3 33765 | -2/Protoforge | Allies destroyed AP7-3 33779 | -2/Protoforge | Allies destroyed AP7-3 33786 | -2/Protoforge | Found Prototype Protection 33786 | -2/Protoforge | Identified Centrium Heavy Armor Plating 33789 | -2/Protoforge | Lost 3 parts (3n) 33792 | -2/Protoforge | Lost 20 allies 33911 | -2/Protoforge | Spotted Hotshot 33922 | -2/Protoforge | Allies destroyed Hotshot 33923 | -2/Protoforge | Spotted Decapitator 33924 | -2/Protoforge | Allies destroyed Decapitator 33931 | -2/Protoforge | Spotted Striker 33931 | -2/Protoforge | Spotted Immortal 33938 | -2/Protoforge | Spotted Executioner 33939 | -2/Protoforge | Allies destroyed Striker 33946 | -2/Protoforge | Destroyed Immortal 33947 | -2/Protoforge | Spotted Hotshot 33954 | -2/Protoforge | Warped through subspace 33984 | -2/Protoforge | Lost 4 parts (3n1u) 33984 | -2/Protoforge | Lost 22 allies 34004 | -2/Protoforge | System corruption reached 10% 34064 | -2/Protoforge | Build established: Scavenger-Gladiator 34110 | -2/Protoforge | Found Cep. Core Shell 34117 | -2/Protoforge | Found Cep. Core Shell 34130 | -2/Protoforge | Spotted Immortal 34145 | -2/Protoforge | Spotted Decapitator 34145 | -2/Protoforge | Spotted Decapitator 34145 | -2/Protoforge | Spotted Decapitator 34145 | -2/Protoforge | Spotted Decapitator 34163 | -2/Protoforge | Destroyed Decapitator 34163 | -2/Protoforge | Destroyed Decapitator 34166 | -2/Protoforge | Destroyed Decapitator 34166 | -2/Protoforge | Destroyed Decapitator 34234 | -2/Protoforge | Found Prototype Slashing Weapon 34237 | -2/Protoforge | Identified Exp. Terror Saw 34270 | -2/Protoforge | Found Corrupted Cep. Antigrav Storage Unit 34274 | -2/Protoforge | Found Prototype Device 34274 | -2/Protoforge | Identified Cep. Matter Streamer 34319 | -2/Protoforge | Found Exp. Melee Analysis Suite 34327 | -2/Protoforge | Found Cep. Concussive Dispersal Blaster 34333 | -2/Protoforge | Found Prototype Storage 34333 | -2/Protoforge | Identified Cep. Chromion Battery 34338 | -2/Protoforge | Found Cep. NT7 Matterbank 34356 | -2/Protoforge | Found Cep. Matter Streamer 34402 | -2/Protoforge | Found Cep. Deflector Sword 34405 | -2/Protoforge | Found Cep. Deflector Sword 34409 | -2/Protoforge | Found Cep. Deflector Sword 34412 | -2/Protoforge | Found Exp. Jetlance 34415 | -2/Protoforge | Found Cep. Disintegration Ray 34416 | -2/Protoforge | Used Core Regenerator, restored core integrity (+362) 34419 | -2/Protoforge | Found Cep. Lightning Penetrator 34425 | -2/Protoforge | Found Faulty Cep. Disintegration Ray 34432 | -2/Protoforge | Found Faulty Cep. Miniperforator 34434 | -2/Protoforge | Found Faulty Cep. Miniperforator 34438 | -2/Protoforge | Found Prototype Energy Cannon 34439 | -2/Protoforge | Identified Cep. Plasma Driver 34444 | -2/Protoforge | Found Faulty Cep. Plasma Driver 34447 | -2/Protoforge | Found Faulty Cep. Plasma Driver 34487 | -2/Protoforge | Destroyed Immortal 34491 | -2/Protoforge | Found Corrupted Prototype Device 34491 | -2/Protoforge | Identified Exp. Cloaking Device 34545 | -2/Protoforge | Found Prototype Device 34545 | -2/Protoforge | Identified Crosscalibrator 34562 | -2/Protoforge | Destroyed 7 combat bots 34576 | -2/Protoforge | Reprogrammed and armed K-01 Serf 34625 | -2/Protoforge | Forge Plexus network access discovered 34650 | -2/Protoforge | Reprogrammed and armed K-01 Serf 34687 | -2/Protoforge | Spotted Decapitator 34687 | -2/Protoforge | Spotted V566-u 34687 | -2/Protoforge | Spotted V509-b 34688 | -2/Protoforge | Spotted Decapitator 34716 | -2/Protoforge | Destroyed V509-b 34721 | -2/Protoforge | Found Cep. Combat Aerolev Unit 34746 | -2/Protoforge | Lost 6 parts (1p4n1u) 34751 | -2/Protoforge | Found Exp. Force Booster 34756 | -2/Protoforge | Found Cep. Melee Reflex Suite 34760 | -2/Protoforge | Found Femtoactuators 34769 | -2/Protoforge | Found Cep. Weapon Articulator 34785 | -2/Protoforge | Found Femtoactuators 34853 | -2/Protoforge | Destroyed Decapitator 34857 | -2/Protoforge | Destroyed Decapitator 34939 | -2/Protoforge | Destroyed 10 combat bots 34943 | -2/Protoforge | Lost 7 parts (4n2u1w) 35008 | -2/Protoforge | Found Cep. Melee Reflex Suite 35096 | -2/Protoforge | Destroyed Executioner 35114 | -2/Protoforge | Spotted Hotshot 35114 | -2/Protoforge | Spotted Executioner 35135 | -2/Protoforge | Destroyed Hotshot 35138 | -2/Protoforge | Destroyed Hotshot 35151 | -2/Protoforge | Additional patrols dispatched to research labs 35200 | -2/Protoforge | Destroyed Executioner 35241 | -2/Protoforge | Spotted Decapitator 35241 | -2/Protoforge | Spotted Decapitator 35241 | -2/Protoforge | Spotted Decapitator 35241 | -2/Protoforge | Spotted Decapitator 35250 | -2/Protoforge | Lost 3 parts (2u1w) 35286 | -2/Protoforge | Spotted Immortal 35312 | -2/Protoforge | Destroyed Immortal 35332 | -2/Protoforge | Scanned by Researcher 35346 | -2/Protoforge | Spotted V146-q 35354 | -2/Protoforge | Destroyed V146-q 35358 | -2/Protoforge | Spotted V647-k 35359 | -2/Protoforge | Found Cep. Combat Aerolev Unit 35360 | -2/Protoforge | Spotted V047-s 35379 | -2/Protoforge | Found Faulty Cep. Combat Aerolev Unit 35389 | -2/Protoforge | Found Cep. Gyrokinetic System 35397 | -2/Protoforge | Found Cep. Combat Aerolev Unit 35431 | -2/Protoforge | Found Faulty Cep. Gyrokinetic System 35437 | -2/Protoforge | Found Prototype Device 35437 | -2/Protoforge | Identified Exp. Shock Absorption System 35540 | -2/Protoforge | Found Cep. RG22 Armor 35553 | -2/Protoforge | Found Exp. Remote Shield 35554 | -2/Protoforge | Found Exp. EM Disruption Field 35566 | -2/Protoforge | Spotted AP7-3 35571 | -2/Protoforge | Destroyed AP7-3 35574 | -2/Protoforge | Spotted AP7-3 35575 | -2/Protoforge | Destroyed AP7-3 35600 | -2/Protoforge | Found Cep. Cloak Mesh 35602 | -2/Protoforge | Found Faulty Cep. Cloak Mesh 35605 | -2/Protoforge | Found Cep. Core Analysis Suite 35608 | -2/Protoforge | Found Faulty Cep. Core Analysis Suite 35676 | -2/Protoforge | Found Cep. Nanofilaments [Tensile] 35676 | -2/Protoforge | Installed Cep. Nanofilaments [Tensile], 3 resistances modified: KI +20%, TH -10%, I +20% 35691 | -2/Protoforge | Found Cep. Navigation Harness 35696 | -2/Protoforge | Found Transdimensional Reconstructor 35789 | -2/Protoforge | Spotted V997-e 35789 | -2/Protoforge | Spotted V354-p 35790 | -2/Protoforge | Spotted V343-g 35790 | -2/Protoforge | Spotted V342-c 35798 | -2/Protoforge | Found Prototype Storage 35799 | -2/Protoforge | Identified Cep. Chromion Battery 35831 | -2/Protoforge | Discovered exit to Access (range 24) 35856 | -2/Protoforge | Entered Access 35856 | -1/Access | Evolved 2 slots: Utility x2 35903 | -1/Access | Warped through subspace 35973 | -1/Access | Discovered new exit (range 9) 36029 | -1/Access | High security lockdown imminent 36067 | -1/Access | Destroyed 8 combat bots 36106 | -1/Access | Identified exit to Command 36106 | -1/Access | Entered Command 36140 | -1/Command | Spotted M Guard 36140 | -1/Command | Spotted M Guard 36140 | -1/Command | Spotted Combat Programmer 36140 | -1/Command | Spotted Combat Programmer 36142 | -1/Command | Destroyed Combat Programmer 36144 | -1/Command | Destroyed Combat Programmer 36148 | -1/Command | Destroyed M Guard 36152 | -1/Command | Attached CPS modules to M Guard. 36157 | -1/Command | Destroyed M Guard 36157 | -1/Command | All MAIN.C guards destroyed 36159 | -1/Command | Found Prototype Device 36159 | -1/Command | Identified AEGIS Remote Shield 36164 | -1/Command | Found Prototype Protection 36164 | -1/Command | Identified Hvy. Regenerative Plating 36167 | -1/Command | Found Prototype Device 36167 | -1/Command | Identified Thermal Barrier 36173 | -1/Command | Found Zero-point Reactor 36176 | -1/Command | Found Prototype Energy Cannon 36176 | -1/Command | Identified Cld. Nova Cannon 36181 | -1/Command | Found Zero-point Reactor 36185 | -1/Command | Identified Sigix Terminator 36199 | -1/Command | Fired Sigix Terminator 36199 | -1/Command | MAIN.C activated Command garrisons 36220 | -1/Command | Destroyed 89 combat bots 36224 | -1/Command | Met MAIN.C 36224 | -1/Command | 0b10 Conduit disabled 36256 | -1/Command | Destroyed MAIN.C Shell 36261 | -1/Command | Found Centrium Heavy Armor Plating 36300 | -1/Command | Spotted Striker 36317 | -1/Command | Found Exp. Powered Armor 36319 | -1/Command | Identified Subatomic Replicator 36319 | -1/Command | Discovered new exit (range 37) 36319 | -1/Command | Discovered new exit (range 109) 36319 | -1/Command | Extracted map data and part IDs from MAIN.C's data core 36319 | -1/Command | Spotted Striker 36322 | -1/Command | Spotted Alpha 7 36322 | -1/Command | Spotted Executioner 36322 | -1/Command | Spotted Executioner 36345 | -1/Command | Spotted Alpha 7 36351 | -1/Command | Lost 7 parts (2p3n2u) 36385 | -1/Command | Spotted B-99 Colossus 36735 | -1/Command | Build established: Scavenger-Sprinter 37049 | -1/Command | Found Cld. Nova Cannon 37051 | -1/Command | Found Adv. Particle Accelerator 37053 | -1/Command | Found Exp. System Purifier 37138 | -1/Command | Found Vortex Chain Reactor 37142 | -1/Command | Found Zero-point Reactor 37289 | -1/Command | Build established: Scavenger-Mutant 37292 | -1/Command | Found Point Singularity Launcher 37396 | -1/Command | Warped through subspace to slip node 37396 | -1/Command | Discovered new exit (range 4) 37401 | -1/Command | Entered Access_0 37401 | -1/Access_0 | Destroyed A8 37404 | -1/Access_0 | Met Architect 37415 | -1/Access_0 | Architect warped through subspace 37441 | -1/Access_0 | Architect warped through subspace 37541 | -1/Access_0 | Found Exp. Shield Generator 37557 | -1/Access_0 | Found Exp. Target Analyzer 37559 | -1/Access_0 | Found Exp. Target Analyzer 37571 | -1/Access_0 | Subspace Access Node disabled 37573 | -1/Access_0 | A6 warped into view 37582 | -1/Access_0 | Destroyed A6 37589 | -1/Access_0 | Subspace Access Node disabled 37638 | -1/Access_0 | Core integrity fell below 50% 37669 | -1/Access_0 | Subspace Access Node disabled 37686 | -1/Access_0 | Lost 6 parts (1p1n3u1w) 37701 | -1/Access_0 | A5 warped into view 37719 | -1/Access_0 | Destroyed A5 37742 | -1/Access_0 | Architect warped through subspace 37780 | -1/Access_0 | Core integrity fell below 20% 37805 | -1/Access_0 | Lost 10 parts (2p3n4u1w) 37810 | -1/Access_0 | Architect warped through subspace 37831 | -1/Access_0 | Architect warped through subspace 37857 | -1/Access_0 | Destroyed by Enhanced Grunt with Neutron Cannon Last Messages --------------- 37837_ System corrupted: Component data lost. 37853_ HV Slug penetrates Wall. 37853_ HV Slug penetrates Enhanced Grunt. 37853_ Enhanced Grunt suffers critical hit (Destroy). 37853_ Destroyed Neutron Cannon. 37853_ HV Slug penetrates Wall. 37853_ HV Slug penetrates Enhanced Grunt. 37853_ Enhanced Grunt suffers critical hit (Destroy). 37853_ Enhanced Grunt destroyed. 37853_ HV Slug penetrates Enhanced Grunt. 37855_ HV Slug penetrates Wall. 37855_ Enhanced Grunt suffers critical hit (Destroy). 37855_ Enhanced Grunt destroyed. 37855_ HV Slug penetrates Wall. 37855_ HV Slug penetrates Earth. 37855_ HV Slug penetrates Wall. 37855_ HV Slug penetrates Earth. 37856_ Wall collapses. 37856_ Penetrated by Quantum Shear. 37856_ Zero-point Reactor destroyed. Map ----- +----------------------------------------------------+ | ?????????????????????????????????????????????????? | | ?????????????????????????????????????????????????? | | ?????????????????????????????????????????????????? | | ?????????????????????????????????????????????????? | | ?????????????????????????????????????????????????? | | ?????????????????????????????????????????????????? | | ?????????????????????????????????????????????????? | | ?????????????????????????????????????????????????? | | ?????????????????????????????????????????????????? | | ?????????????????????????????????????????????????? | | ?????????????????????????????????????????????????? | | ?????????????????????????????????????????????????? | | ?????????????????????????????????????????????????? | | ?????????????????????????????????????????????????? | | ?????????????????????????????????????????????????? | | ?????????????????????????????????????????????????? | | ?????????????????????????????????????????????????? | | ?????????????????????????????????????????????????? | | ?????????????????????????????????????????????????? | | ?????????????????????????????????????????????????? | | ?????????????????????????????????????????????????? | | ?????????????????????????????????????????????????? | | ????????????????????????#####????????????????????? | | ????????????????????????#;;;#????????????????????? | | ??????????????????????###; ##???????????????????? | | ????????????????#?????# ;@= #???????????????????? | | ?###??????????? ??????##*;!! ##??????????????????? | | ?? ?????????? ???????#!%%!! #??????????????????? | | ??? ????????? ?????##;;]!g###??????????????????? | | ???# ???????? ??????# = #????????????????????? | | #### ???????? ??????# ###??????????????????? | | # ?????? #???#### ##?????????????????? | | # ###???"#???# #?????????????????? | | # ###"##??## ##?????????????????? | | # ##??# ;###??????????????????? | | ????# #??# ##????????????????????? | | ????#### "####??## ##?????????????????????? | | ???????## ###?????#;#; #??????????????????????? | | ?##?????## # #?????####0g#??????????????????????? | | ## ####?## "##??##????#g #??????????????????????? | | # ##" # #??# #???#g #??????????????????????? | | ?# ##"" " #??# #?## #??????????????????????? | | ??#" ###??# ## #??????????????????????? | | ??## #????# #??????????????????????? | | ?### ######????## #??????????????????????? | | ## ##???????###### ##??????????????????????? | | ##????????# ## ##??????????????????????? | | ### #?????????# #??????????????????????? | | ??## ##????????# ## #?????????????????????? | | ### ###??????##### ##### #???????????????????? | +----------------------------------------------------+ Best States ------------- Heat Dissipation 146 Coolant Potential 120 Energy Generation 61 Energy Capacity 2450 Matter Stores 300 Matter Capacity 300 Sight Range 24 Robot Scan Range 16 Terrain Scan Range 16 Terrain Scan Density 85 Jamming Range 16 Cloak Strength 9 Additional Mass Support 25 Corruption Containment 8 Corruption Block 12 Armor Coverage 1000 Resistance: KI 30 Resistance: EX 75 Resistance: EM 75 Resistance: I 20 Core Shielding 90 Propulsion Shielding 66 Utility Shielding 90 Weapon Shielding 90 Projectile Deflection 15 Melee Speed Boost 50 Phase Shifting 15 Evasion (%) 84 Targeting Accuracy 30 Melee Accuracy 36 Target Analysis 15 Core Analysis 16 Recoil Reduction 5 Energy Filtering 50 Particle Charging 50 Force Boost 50 Offensive Hacking 36 Defensive Hacking 12 Relay Coupler Types 1 Relay Coupler Value 32 Authchip Count 3 Item Schematics ----------------- Huge Storage Unit | -10/Materials | Hacked Mak. Hover Unit | -8/Materials | Scanalyzed Hacking Suite | -8/Materials | Hacked IN-MT5's Pitchfork "Insurrection" | -8/Scraptown | Archive CPS Tube | -6/Factory | Scanalyzed Imp. Diametric Drive | -6/Factory | Scanalyzed Assault Drone Bay | -5/Zhirov | Free Exp. Heat Sink | -5/Zhirov | Free Exp. Optical Array | -5/Zhirov | Free Imp. Arc Thrower | -5/Zhirov | Free Assault Rifle | -4/Factory | Hacked Adv. Weapon Cycler | -4/Factory | Hacked Adv. Heavy Siege Treads | -4/Factory | Hacked Cmb. Linear Gravjet | -4/Factory | Scanalyzed Terrain Scanner | -4/Factory | Hacked Adv. Launcher Guidance Computer | -4/Factory | Hacked Biometal Leg | -4/Factory | Hacked Adv. Force Booster | -4/Factory | Hacked Ragnarok Missile Launcher | -2/Quarantine | Archive Exp. Thermal Defense Suite | -2/Quarantine | Archive Enh. Armored Medium Treads | -2/Quarantine | Archive Helical Railgun | -2/Quarantine | Archive Cld. Antigrav System | -2/Quarantine | Archive Exp. EM Disruption Field | -2/Quarantine | Archive Exp. Reaction Control System | -2/Quarantine | Archive Exp. Transmission Jammer | -2/Quarantine | Archive Zero-point Reactor | -2/Quarantine | Archive Neutron Missile Launcher | -2/Quarantine | Archive Enh. Multireflex Exoskeleton | -2/Quarantine | Archive Hvy. Tesla Rifle | -2/Quarantine | Archive Exp. Biometal Heavy Treads | -2/Quarantine | Archive Mni. Smartbomb Launcher | -2/Quarantine | Archive Adv. Quantum Shading Machine | -2/Quarantine | Archive Coolant Network | -2/Quarantine | Archive Thunder Hammer | -2/Quarantine | Archive Diametric Drive | -2/Protoforge | Archive Robot Schematics ------------------ R-06 Scavenger | -2/Quarantine | Archive K-01 Serf | -2/Quarantine | Archive M-36 Artificer | -2/Quarantine | Archive B-74 Champion | -2/Quarantine | Archive H-88 Terminator | -2/Quarantine | Archive Fabricated ------------ IN-MT5's Pitchfork "Insurrection" | x1 | -6/Factory | Authchip IN-MT5's Pitchfork "Insurrection" | x1 | -6/Factory IN-MT5's Pitchfork "Insurrection" | x1 | -6/Factory IN-MT5's Pitchfork "Insurrection" | x1 | -6/Factory | Authchip IN-MT5's Pitchfork "Insurrection" | x1 | -6/Factory IN-MT5's Pitchfork "Insurrection" | x1 | -6/Factory IN-MT5's Pitchfork "Insurrection" | x1 | -5/Factory CPS Tube | x1 | -5/Factory IN-MT5's Pitchfork "Insurrection" | x1 | -5/Factory IN-MT5's Pitchfork "Insurrection" | x1 | -5/Factory IN-MT5's Pitchfork "Insurrection" | x1 | -4/Factory IN-MT5's Pitchfork "Insurrection" | x1 | -4/Factory IN-MT5's Pitchfork "Insurrection" | x1 | -3/Armory | Authchip CPS Tube | x1 | -2/Research | Authchip IN-MT5's Pitchfork "Insurrection" | x1 | -2/Research | Authchip IN-MT5's Pitchfork "Insurrection" | x1 | -2/Research IN-MT5's Pitchfork "Insurrection" | x1 | -2/Research Repaired ---------- Lgt. Armor Plating | 21% | -9/Materials Arm. Wheel | 21% | -8/Materials Arm. Wheel | 46% | -8/Materials Arm. Treads | 15% | -8/Materials Studied --------- Arm. Wheel | -8/Materials | Hacked Lgt. Nuclear Core | -8/Materials | Hacked Mic. Nuclear Core | -6/Factory | Hacked Impulse Thruster | -4/Factory | Hacked Field Propulsion Drive | -4/Factory | Hacked Mic. Fission Core | -4/Factory | Hacked Force Lance | -4/Factory | Hacked VTOL Module | -3/Research | Hacked Lgt. Quantum Reactor | -2/Research | Hacked Alien Tech Used ----------------- Integrated Dissipator Integrated Mediator Transdimensional Reconstructor Core Regenerator Concept Nanofilaments [Tensile] Sigix Terminator Achievements -------------- None Challenges ------------ None Game ------ Seed ThermalFissionBasin Manual? 0 Play Time 12:32:01 Cumulative 1233.6 hours Start 2026.01.06 @ 10:40:29 End 2026.01.07 @ 12:39:52 Sessions 7 Manual Loads 0 Difficulty Rogue Special Mode None Game No. 424 Rogue 419 Adventurer 4 Explorer 1 Win Type - Total 26 Types 14/5/1/2/0/1/0/0/2/1 Lore% 97 Gallery% 96 Achievement% 82 Wizard Run 0 Options --------- Layout 0 ASCII 0 Keyboard 0 Movement Numpad Keybinds 0 Fullscreen 2 Font 18/SmallcapsGlow Map View 76x50 Zoom Use 0% Tactical HUD 1 Map Filters NONE Filters NONE Steam 1 RUN: 059bd57b-b8f1-4dac-95ba-8f89de062f93